Workbook

Sheet Ring-pan y Huella CO2
F3: Costo cemento : | H3: 2.6 | I3: Pesos/kg
F4: 1 USD = | H4: 20 | I4: Pesos
N7: SOLUCIONES PRACTICAS LIEBHERR PARA BAJAR SU HUELLA CO2 :
B8: EQUIPO FRANCES SA DE CV, Colima, 21 de Junio 2020, actualizado Jun. 22 2022. | N8: 1. Fase AMASADO : | T8: 2. Fase TRANSPORTE | V8: 2. Fase COLOCACION | X8: 4. FIN DE VIDA :
D9: Sintesis financiera : | E9: =+E19 -> Ring-pan 2.5 D | F9: ESTUDIO AMASADO CONCRETO : PARTE N°4 : Ahorros y soluciones LIEBHERR. 4.1. P6 | L9: SELECCIONAR: | N9: MEZCLADOR : | P9: PLANTA : | T9: REVOLVEDORA : | V9: BANDOLLA + ELECTRICA :
D10: Ahorros totales : | E10: =+F23 -> 472106.25 | F10: 1. Cálculo ahorros si utiliza un mezclador LIEBHERR al lugar de una Revolvedora Olla o TILT. | L10: Revolvedora Olla | M10: 120
D11: Costo anual : | E11: =+F27 -> 44719.65 | F11: 2. Mejora huella CO2 según Mezclador versus Olla o Tilt + Equipo de Transporte. | L11: Ring-pan 2.5 D | M11: 106 | AB11: Añadir Tilt para Holcim
D12: Beneficio adicional : | E12: =+F29 -> 427386.6 | F12: 3. Cálculo ahorro cemento si utiliza una Sistema de Medición Humedad LIEBHERR. | L12: Promedio actual | M12: =+H45 -> 20.83333333 | AB12: y Versión Twin-shaft Liebherr
D13: Meses amortización : | E13: =+F30 -> 6.26374977 | F13: Perfil de producción : concreto para venta al público. | N13: Ring-pan Twin-shaft | O13: Sensor humedad | P13: Mobilmix | Q13: LCM1 | R13: LCM3 Twin- | S13: Mobile Twin | T13: Revolvedora eléctrica : | V13: BANDOLLA | W13: Estacionaria | X13: Reciclador LRS
D14: Mejora Huella CO2 : | E14: =+F33 -> -1998200 | F14: Ejemplos : resistencias variadas y volumenes medianos. | N14: Instalar o plataforma. | O14: en Arena y Agregado | P14: Rin-pan 0.5 m3 | Q14: Rin-pan 1.0 m3 | R14: -shaft3.0 m3 | S14: shaft 4.5 m3 | T14: Chasis | U14: Remolque | W14: Eléctrica | Z14: Opción 2 | AA14: Opcion 3 | AD14: AMASADO | AH14: TRANSPORTE | AL14: TOTAL | AM14: MEJORA | AO14: Precio 80 Euros/t | AP14: DIFERENCIA | AQ14: Precio 80 Euros/t
F15: INDICADORES ECONÓMICOS FASE AMASADO : | O15: EMISION Y HUELLA CO2 CALCULA METODOLOGIA LCA LEGAL : | Z15: Cemento-Mezclador : | AA15: Transporte Parada | AC15: #CementoSistema | AD15: CEMENTO | AE15: ENERGIA | AF15: TOTAL | AG15: #TransporteParadas | AH15: PARADAS | AI15: #TransporteActivo | AJ15: ACTIVO | AK15: TOTAL | AM15: / OLLA % | AN15: KG | AO15: ahorro USD/m3 | AP15: CON TILT | AQ15: ahorro USD/m3
F16: Año n°1 | G16: Año n°2 | H16: Año n°3 | I16: Año n°4 | J16: Año n°5 | K16: Total 5 años | L16: Año 6 | M16: Pago | N16: SU HUELLA CO2 ACTUAL : con | P16: Revolvedora Olla | Q16: %/Total | R16: HUELLA con | S16: Ring-pan 2.5 D | T16: Mejoras: | U16: HUELLA CO2 CON OTRAS OPCIONES : | W16: Mejoras con Huella Actual : | Z16: Ring-pan 1.5 D | AA16: Revolvedora Diesel | AB16: Rev. Diesel | AD16: ='Factor CO2'!I28 -> 10885000 | AE16: ='Factor CO2'!J28 -> 15400 | AF16: ='Factor CO2'!K28 -> 10900400 | AG16: Revolvedora Diesel | AH16: ='Factor CO2'!L28 -> 33000 | AI16: Camión Diesel | AJ16: ='Factor CO2'!M28 -> 165000 | AK16: ='Factor CO2'!N28 -> 198000 | AL16: ='Factor CO2'!O28 -> 11098400 | AM16: 0 | AN16: 0 | AP16: 0
E17: Ahorro cemento Sensor Humedad si 2% variación : | F17: =+J59 -> 186301.3774 | G17: =+F17 -> 186301.3774 | H17: =+F17 -> 186301.3774 | I17: =+F17 -> 186301.3774 | J17: =+F17 -> 186301.3774 | K17: =+SUM(F17:J17) -> 931506.8872 | L17: =+F17 -> 186301.3774 | N17: Amasado Cemento | O17: Revolvedora Olla | P17: 10885000 | Q17: =+P17/$P$23 -> 0.9806129619 | R17: Ring-pan 2.5 D | S17: 8885000 | T17: =-(P17-S17)/P17 -> -0.1837390905 | U17: Twin-shaft 1.25 | V17: 9350000 | W17: =+(V17-P17)/P17 -> -0.141019752 | X17: =+V17-P17 -> -1535000 | Z17: Ring-pan 2.5 D | AA17: Revolvedora Gas | AB17: Rev. Gas | AD17: ='Factor CO2'!I29 -> 10885000 | AE17: ='Factor CO2'!J29 -> 12300 | AF17: ='Factor CO2'!K29 -> 10897300 | AG17: Revolvedora Gas | AH17: ='Factor CO2'!L29 -> 26400 | AI17: Camión Gas | AJ17: ='Factor CO2'!M29 -> 132000 | AK17: ='Factor CO2'!N29 -> 158400 | AL17: ='Factor CO2'!O29 -> 11055700 | AM17: =+(AL17-$AL$16)/$AL$16 -> -0.003847401427 | AN17: =+AL17-$AL$16 -> -42700 | AO17: =-0.088*AN17 -> 3757.6 | AP17: =+AL17-$AL$20 -> 158400 | AQ17: =-0.088*AP17 -> -13939.2
G18: Ahorros con Mezclador LIEBHERR versus Revolvedora : | N18: Amasado Energia | O18: Diesel | P18: 17200 | Q18: =+P18/$P$23 -> 0.00154952163 | R18: Electricidad | S18: =+AE28 -> 17200 | T18: =-(P18-S18)/P18 -> 0 | U18: Electricidad | V18: 12300 | W18: =+(V18-P18)/P18 -> -0.2848837209 | X18: =+V18-P18 -> -4900 | Z18: Twin-shaft 1.25 | AA18: Revolvedora Eléctrica | AB18: Rev Elec Diesel | AD18: ='Factor CO2'!I30 -> 10885000 | AE18: ='Factor CO2'!J30 -> 10100 | AF18: ='Factor CO2'!K30 -> 10895100 | AG18: Revolvedora Eléctrica | AH18: ='Factor CO2'!L30 -> 21600 | AJ18: ='Factor CO2'!M30 -> 165000 | AK18: ='Factor CO2'!N30 -> 186600 | AL18: ='Factor CO2'!O30 -> 11081700 | AM18: -0.001504721401 | AN18: -16700 | AO18: =-0.088*AN18 -> 1469.6 | AP18: 184400 | AQ18: =-0.088*AP18 -> -16227.2
D19: Ahorro 8 a 19% cemento con : | E19: Ring-pan 2.5 D | F19: 410556.25 | G19: =+F19 -> 410556.25 | H19: =+F19 -> 410556.25 | I19: =+F19 -> 410556.25 | J19: =+F19 -> 410556.25 | K19: =+SUM(F19:J19) -> 2052781.25 | L19: =+F19 -> 410556.25 | N19: Total Amasado | P19: =+P18+P17 -> 10902200 | Q19: =+Q17+Q18 -> 0.9821624836 | S19: =+S18+S17 -> 8902200 | T19: =-(P19-S19)/P19 -> -0.1834492121 | V19: =+V18+V17 -> 9362300 | W19: -0.1412467208 | X19: -1539900 | Z19: Twin-shaft 2.25 | AA19: Opción 4 | AB19: Rev Elec Gas | AD19: ='Factor CO2'!I31 -> 10885000 | AE19: ='Factor CO2'!J31 -> 10100 | AF19: ='Factor CO2'!K31 -> 10895100 | AH19: ='Factor CO2'!L31 -> 21600 | AJ19: ='Factor CO2'!M31 -> 132000 | AK19: ='Factor CO2'!N31 -> 153600 | AL19: ='Factor CO2'!O31 -> 11048700 | AM19: -0.004478122973 | AN19: -49700 | AO19: 4373.6 | AP19: 151400 | AQ19: -13323.2
E20: Ahorro inversión Revolvedora : | F20: =+H110 -> 54675 | G20: 0 | H20: 0 | I20: 0 | J20: 0 | K20: =+SUM(F20:J20) -> 54675 | L20: 0 | N20: Transporte Paradas | O20: Diesel | P20: =+AH16 -> 33000 | Q20: =+P20/$P$23 -> 0.002972919407 | R20: Diesel | S20: =+AH28 -> 33000 | T20: =-(P20-S20)/P20 -> 0 | U20: Revolvedora Eléctrica | V20: 21600 | W20: -0.3454545455 | X20: -11400 | Z20: Twin-shaft 3.0 | AA20: Transporte Activo | AB20: Tilt Diesel | AC20: Tilt | AD20: ='Factor CO2'!I32 -> 10665000 | AE20: ='Factor CO2'!J32 -> 34300 | AF20: =+AE20+AD20 -> 10699300 | AH20: ='Factor CO2'!L32 -> 33000 | AJ20: ='Factor CO2'!M32 -> 165000 | AK20: =+AJ20+AH20 -> 198000 | AL20: =+AK20+AF20 -> 10897300 | AM20: -0.01811972897 | AN20: -201100 | AO20: 17696.8 | AP20: 0 | AQ20: 0
E21: Ahorro diesel Revolvedera Olla : | F21: 6875 | G21: =+F21 -> 6875 | H21: =+F21 -> 6875 | I21: =+F21 -> 6875 | J21: =+F21 -> 6875 | K21: 34375 | L21: =+F21 -> 6875 | N21: Transporte Activo | O21: Diesel | P21: =+AJ16 -> 165000 | Q21: =+P21/$P$23 -> 0.01486459703 | R21: Diesel | S21: =+AJ28 -> 165000 | T21: 0 | U21: Camión Diesel | V21: 165000 | W21: 0 | X21: 0 | Z21: Twin-shaft 4.5 | AA21: Camión Diesel | AB21: Tilt Gas | AD21: ='Factor CO2'!I33 -> 10665000 | AE21: ='Factor CO2'!J33 -> 34300 | AF21: =+AE21+AD21 -> 10699300 | AH21: ='Factor CO2'!L33 -> 26400 | AJ21: ='Factor CO2'!M33 -> 132000 | AK21: =+AJ21+AH21 -> 158400 | AL21: =+AK21+AF21 -> 10857700 | AM21: -0.02168781086 | AN21: -240700 | AO21: 21181.6 | AP21: =+AL21-$AL$20 -> -39600 | AQ21: 3484.8
E22: Ahorro/consumo electricidad Revolvedera Tilt : | F22: 0 | G22: =+F22 -> 0 | H22: =+F22 -> 0 | I22: =+F22 -> 0 | J22: =+F22 -> 0 | K22: =+SUM(F22:J22) -> 0 | L22: =+F22 -> 0 | N22: Total Transporte | P22: =+P21+P20 -> 198000 | Q22: =+Q21+Q20 -> 0.01783751644 | S22: =+S21+S20 -> 198000 | T22: 0 | V22: =+V21+V20 -> 186600 | W22: -0.05757575758 | X22: -11400 | Z22: MTS 4.5 Móvil | AA22: Camión Gas | AB22: Tilt Rev Elec Diesel | AD22: ='Factor CO2'!I34 -> 10665000 | AE22: ='Factor CO2'!J34 -> 34300 | AF22: 10699300 | AH22: ='Factor CO2'!L34 -> 21600 | AJ22: ='Factor CO2'!M34 -> 165000 | AK22: 186600 | AL22: 10885900 | AM22: -0.01914690406 | AN22: -212500 | AO22: 18700 | AP22: -11400 | AQ22: 1003.2
D23: Ahorros totales con : | E23: Ring-pan 2.5 D | F23: =+F19+F20+F21 -> 472106.25 | G23: 417431.25 | H23: 417431.25 | I23: 417431.25 | J23: 417431.25 | K23: 2141831.25 | L23: 417431.25 | N23: GRAN TOTAL | P23: =+P22+P19 -> 11100200 | Q23: =+Q22+Q19 -> 1 | S23: =+S22+S19 -> 9100200 | T23: -0.1801769337 | V23: =+V22+V19 -> 9548900 | W23: -0.1397542387 | X23: -1551300 | Z23: Planta Mobilmix 0.5 | AB23: Tilt Rev Elec Gas | AD23: ='Factor CO2'!I35 -> 10665000 | AE23: ='Factor CO2'!J35 -> 34300 | AF23: 10699300 | AH23: ='Factor CO2'!L35 -> 21600 | AJ23: ='Factor CO2'!M35 -> 132000 | AK23: 153600 | AL23: 10852900 | AM23: -0.02212030563 | AN23: -245500 | AO23: 21604 | AP23: -44400 | AQ23: 3907.2
G24: Costo amortización Mezclador LIEBHERR : | K24: Precio inversión : | Z24: Planta LCM 1 | AB24: Twin-shaft Diesel | AC24: Twin-shaft 3.5 | AD24: ='Factor CO2'!I36 -> 9350000 | AE24: ='Factor CO2'!J36 -> 12300 | AF24: ='Factor CO2'!K36 -> 9362300 | AH24: ='Factor CO2'!L36 -> 33000 | AJ24: ='Factor CO2'!M36 -> 165000 | AK24: ='Factor CO2'!N36 -> 198000 | AL24: ='Factor CO2'!O36 -> 9560300 | AM24: =+(AL24-$AL$16)/$AL$16 -> -0.1385875442 | AN24: =+AL24-$AL$16 -> -1538100 | AO24: =-0.088*AN24 -> 135352.8 | AP24: =+AL24-$AL$20 -> -1337000 | AQ24: =-0.088*AP24 -> 117656
D25: Amortización : | E25: Ring-pan 2.5 D | F25: =+K25/5 -> 43494.8 | G25: =+F25 -> 43494.8 | H25: =+F25 -> 43494.8 | I25: =+F25 -> 43494.8 | J25: =+F25 -> 43494.8 | K25: 217474 | L25: 0 | N25: =+N17 -> Amasado Cemento | O25: =+Q17 -> 0.9806129619 | R25: =+N25 -> Amasado Cemento | S25: =+S17-P17 -> -2000000 | U25: =+N25 -> Amasado Cemento | V25: =+V17-P17 -> -1535000 | Z25: Planta LCM 3 | AB25: Twin-shaft Gas | AD25: ='Factor CO2'!I37 -> 9350000 | AE25: ='Factor CO2'!J37 -> 12300 | AF25: ='Factor CO2'!K37 -> 9362300 | AH25: ='Factor CO2'!L37 -> 26400 | AJ25: ='Factor CO2'!M37 -> 132000 | AK25: ='Factor CO2'!N37 -> 158400 | AL25: ='Factor CO2'!O37 -> 9520700 | AM25: -0.142155626 | AN25: -1577700 | AO25: 138837.6 | AP25: =+AL25-$AL$20 -> -1376600 | AQ25: 121140.8
E26: Costo consumo de electricidad : | F26: 1224.85 | G26: =+F26 -> 1224.85 | H26: =+F26 -> 1224.85 | I26: =+F26 -> 1224.85 | J26: =+F26 -> 1224.85 | K26: =+SUM(F26:J26) -> 6124.25 | L26: =+F26 -> 1224.85 | N26: =+N18 -> Amasado Energia | O26: =+Q18 -> 0.00154952163 | R26: =+N26 -> Amasado Energia | S26: =+S18-P18 -> 0 | U26: =+N26 -> Amasado Energia | V26: =+V18-P18 -> -4900 | Z26: Opción 1 | AB26: Twin-shaft Rev Elec Diesel | AD26: ='Factor CO2'!I38 -> 9350000 | AE26: ='Factor CO2'!J38 -> 12300 | AF26: ='Factor CO2'!K38 -> 9362300 | AH26: ='Factor CO2'!L38 -> 21600 | AJ26: ='Factor CO2'!M38 -> 165000 | AK26: ='Factor CO2'!N38 -> 186600 | AL26: ='Factor CO2'!O38 -> 9548900 | AM26: -0.1396147192 | AN26: -1549500 | AO26: 136356 | AP26: -1348400 | AQ26: 118659.2
D27: Total costos mezclado | E27: Ring-pan 2.5 D | F27: =+F25+F26 -> 44719.65 | G27: =+F27 -> 44719.65 | H27: =+F27 -> 44719.65 | I27: =+F27 -> 44719.65 | J27: =+F27 -> 44719.65 | K27: =+SUM(F27:J27) -> 223598.25 | L27: =+F27 -> 44719.65 | N27: =+N20 -> Transporte Paradas | O27: =+Q20 -> 0.002972919407 | R27: =+N20 -> Transporte Paradas | S27: =-(S20-P20) -> 0 | U27: Transporte Paradas | V27: =+V20-P20 -> -11400 | Z27: Revolvedora Olla | AB27: Twin-shaft Rev Elec Gas | AD27: ='Factor CO2'!I39 -> 9350000 | AE27: ='Factor CO2'!J39 -> 12300 | AF27: ='Factor CO2'!K39 -> 9362300 | AH27: ='Factor CO2'!L39 -> 21600 | AJ27: ='Factor CO2'!M39 -> 132000 | AK27: ='Factor CO2'!N39 -> 153600 | AL27: ='Factor CO2'!O39 -> 9515900 | AM27: -0.1425881208 | AN27: -1582500 | AO27: 139260 | AP27: -1381400 | AQ27: 121563.2
G28: Balance financiero = Beneficio adicional con Mezclador LIEBHERR : | N28: =+N21 -> Transporte Activo | O28: =+Q21 -> 0.01486459703 | R28: Transporte Activo | S28: =-(S21-P21) -> 0 | U28: Transporte Activo | V28: =+V21-P21 -> 0 | Z28: Revolvedora Tilt | AB28: Ring-pan Diesel | AC28: Ring-pan 2.5 D | AD28: ='Factor CO2'!I40 -> 8885000 | AE28: ='Factor CO2'!J40 -> 17200 | AF28: ='Factor CO2'!K40 -> 8902200 | AH28: ='Factor CO2'!L40 -> 33000 | AJ28: ='Factor CO2'!M40 -> 165000 | AK28: ='Factor CO2'!N40 -> 198000 | AL28: ='Factor CO2'!O40 -> 9100200 | AM28: -0.1800439703 | AN28: -1998200 | AO28: 175841.6 | AP28: -1797100 | AQ28: 158144.8
D29: Beneficio adicional con : | E29: Ring-pan 2.5 D | F29: =+F23-F27 -> 427386.6 | G29: =+G23-G27 -> 372711.6 | H29: 372711.6 | I29: 372711.6 | J29: 372711.6 | K29: 1918233 | L29: 372711.6 | AB29: Ring-pan Gas | AD29: ='Factor CO2'!I41 -> 8885000 | AE29: ='Factor CO2'!J41 -> 17200 | AF29: ='Factor CO2'!K41 -> 8902200 | AH29: ='Factor CO2'!L41 -> 26400 | AJ29: ='Factor CO2'!M41 -> 132000 | AK29: ='Factor CO2'!N41 -> 158400 | AL29: ='Factor CO2'!O41 -> 9060600 | AM29: -0.1836120522 | AN29: -2037800 | AO29: 179326.4 | AP29: -1836700 | AQ29: 161629.6
D30: Años para pagar y cumulativo: | E30: Ring-pan 2.5 D | F30: =+(K27/(K23/60)) -> 6.26374977 | G30: =+F29+G29 -> 800098.2 | H30: =+G30+H29 -> 1172809.8 | I30: =+H30+I29 -> 1545521.4 | J30: =+I30+J29 -> 1918233 | L30: =+J30+L29 -> 2290944.6 | AB30: Ring-pan Rev Elec Diesel | AD30: ='Factor CO2'!I42 -> 8885000 | AE30: ='Factor CO2'!J42 -> 17200 | AF30: ='Factor CO2'!K42 -> 8902200 | AH30: ='Factor CO2'!L42 -> 21600 | AJ30: ='Factor CO2'!M42 -> 165000 | AK30: ='Factor CO2'!N42 -> 186600 | AL30: ='Factor CO2'!O42 -> 9088800 | AM30: -0.1810711454 | AN30: -2009600 | AO30: 176844.8 | AP30: -1808500 | AQ30: 159148
G31: Ahorro CO2 adicional con Mezclador M LIEBHERR : | AB31: Ring-pan Rev Elec Gas | AD31: ='Factor CO2'!I43 -> 8885000 | AE31: ='Factor CO2'!J43 -> 17200 | AF31: ='Factor CO2'!K43 -> 8902200 | AH31: ='Factor CO2'!L43 -> 21600 | AJ31: ='Factor CO2'!M43 -> 132000 | AK31: ='Factor CO2'!N43 -> 153600 | AL31: ='Factor CO2'!O43 -> 9055800 | AM31: -0.184044547 | AN31: -2042600 | AO31: 179748.8 | AP31: -1841500 | AQ31: 162052
D32: Ahorro valor CO2 con | E32: Ring-pan 2.5 D | F32: 175841.6 | G32: =+F32 -> 175841.6 | H32: =+F32 -> 175841.6 | I32: =+F32 -> 175841.6 | J32: =+F32 -> 175841.6 | K32: =+SUM(F32:J32) -> 879208 | L32: =+F32 -> 175841.6 | AB32: Porcentaje del TOTAL | AD32: =+SUM(AD16:AD31)/SUM($AL$16:$AL$31) -> 0.9809559914 | AE32: =+SUM(AE16:AE31)/SUM($AL$16:$AL$31) -> 0.001868340838 | AF32: =+SUM(AF16:AF31)/SUM($AL$16:$AL$31) -> 0.9828243322 | AH32: =+SUM(AH16:AH31)/SUM($AL$16:$AL$31) -> 0.002529749522 | AJ32: =+SUM(AJ16:AJ31)/SUM($AL$16:$AL$31) -> 0.01464591828 | AK32: =+SUM(AK16:AK31)/SUM($AL$16:$AL$31) -> 0.0171756678
D33: Evolución Huella CO2 con | E33: Ring-pan 2.5 D | F33: -1998200 | G33: =+F33 -> -1998200 | H33: =+G33 -> -1998200 | I33: -1998200 | J33: -1998200 | K33: =+SUM(F33:J33) -> -9991000 | L33: =+F33 -> -1998200
AC34: =+AB30 -> Ring-pan Rev Elec Diesel | AD34: =+AL30 -> 9088800 | AE34: =+AC34 -> Ring-pan Rev Elec Diesel | AF34: =+AM30 -> -0.1810711454
E35: SU PRODUCCIÓN DE CONCRETO ANUAL : | H35: ENTRAR DATOS | AC35: =+AB31 -> Ring-pan Rev Elec Gas | AD35: =+AL31 -> 9055800 | AE35: Ring-pan Rev Elec Gas | AF35: =+AM31 -> -0.184044547
E36: Resistencia concreto | G36: Producción | H36: Formulación kg/m3
E37: Mpa | F37: kg/cm2* | G37: anual | H37: Agua | I37: Cemento | J37: Agregados | K37: Total | L37: Agua/Cem | M37: %Agua | N37: MPa teórica
E38: Bloque 10-20 MPa | F38: 90-200 kg/cm2 | G38: 0 | H38: 0 | I38: 0 | J38: 0 | K38: =+SUM(H38:J38) -> 0 | L38: =IFERROR('Cálculo humedad'!J27,0) -> 0 | M38: =IFERROR(+H38/K38,0) -> 0 | N38: ='Cálculo humedad'!$K$27 -> 0
E39: 25 MPa | F39: 250 kg/cm2 | G39: 0.5 | H39: 180 | I39: 325 | J39: 1650 | K39: =+SUM(H39:J39) -> 2155 | L39: =IFERROR('Cálculo humedad'!J28,0) -> 0.5538461538 | M39: =IFERROR(+H39/K39,0) -> 0.08352668213 | N39: ='Cálculo humedad'!$K$28 -> 26.11111111
E40: 30 MPa | F40: 300-320 kg/cm2 | G40: 0 | H40: 0 | I40: 0 | J40: 0 | K40: 0 | L40: =IFERROR('Cálculo humedad'!J30,0) -> 0 | M40: =IFERROR(+H40/K40,0) -> 0 | N40: ='Cálculo humedad'!K30 -> 0
E41: 35 MPa | F41: 350-400 kg/cm2 | G41: 0.5 | H41: 180 | I41: 350 | J41: 1600 | K41: =+SUM(H41:J41) -> 2130 | L41: =IFERROR('Cálculo humedad'!J31,0) -> 0.5142857143 | M41: 0.08450704225 | N41: ='Cálculo humedad'!K31 -> 28.88888889
E42: Vigueta 350-45 Mpa | F42: 350-450 kg/cm2 | G42: 0 | H42: 0 | I42: 0 | J42: 0 | K42: 0 | L42: ='Cálculo humedad'!J33 -> 0.3625 | M42: 0 | N42: ='Cálculo humedad'!K33 -> 45.17241379
E43: Durmiente 65 Mpa | F43: 660 kg/cm2 | G43: 0 | J43: 0 | K43: 0 | L43: ='Cálculo humedad'!J34 -> 0.2955555556 | M43: 0 | N43: ='Cálculo humedad'!K34 -> 57.66917293
E44: * 1 kg/cm2 = 1,02 Mpa | F44: Total detallado % : | G44: =+SUM(G38:G43) -> 1 | H44: m3/hora | J44: Humedad mas baja : | K44: 0.01
F45: Total producido m3: | G45: 50000 | H45: =+G45/(8*6*50) -> 20.83333333 | J45: Humedad mas alta : | K45: 0.03
E48: SI UTILIZAN UNA SONDA HUMEDAD FMS LIEBHERR : AHORRO CEMENTO.
E50: Resistencia concreto | G50: Si variación 1% corregida | I50: Si variación 2% corregida | K50: Si variación 3% corregida
E51: Mpa | F51: kg/cm2* | G51: Bajada MPa | H51: USD cemento | I51: Bajada MPa | J51: USD cemento | K51: Bajada MPa | L51: USD cemento | O51: Variación 1% | P51: Variación 2% | Q51: Variación 3%
E52: =+E38 -> Bloque 10-20 MPa | F52: 90-200 kg/cm2 | G52: ='Cálculo humedad'!$J$39 -> 0 | H52: ='Cálculo humedad'!$L$39 -> 0 | I52: ='Cálculo humedad'!$J$40 -> 0 | J52: ='Cálculo humedad'!$L$40 -> 0 | K52: ='Cálculo humedad'!$J$41 -> 0 | L52: ='Cálculo humedad'!$L$41 -> 0 | N52: =+E52 -> Bloque 10-20 MPa | O52: =+H52 -> 0 | P52: =+J52 -> 0 | Q52: =+L52 -> 0
E53: 25 MPa | F53: 250 kg/cm2 | G53: ='Cálculo humedad'!$J$44 -> -3.032230704 | H53: ='Cálculo humedad'!$L$44 -> 49273.74894 | I53: ='Cálculo humedad'!$J$45 -> -5.594679186 | J53: ='Cálculo humedad'!$L$45 -> 90913.53678 | K53: ='Cálculo humedad'!$J$46 -> -7.788671024 | L53: ='Cálculo humedad'!$L$46 -> 126565.9041 | N53: =+E53 -> 25 MPa | O53: =+H53 -> 49273.74894 | P53: =+J53 -> 90913.53678 | Q53: 126565.9041
E54: 30 MPa | F54: 300-320 kg/cm2 | G54: ='Cálculo humedad'!$J$50 -> 0 | H54: ='Cálculo humedad'!$L$50 -> 0 | I54: ='Cálculo humedad'!$J$51 -> 0 | J54: ='Cálculo humedad'!$L$51 -> 0 | K54: ='Cálculo humedad'!$J$52 -> 0 | L54: ='Cálculo humedad'!$L$52 -> 0 | N54: 30 MPa | O54: 0 | P54: 0 | Q54: 0
E55: 35 MPa | F55: 350-400 kg/cm2 | G55: ='Cálculo humedad'!$J$55 -> -3.174603175 | H55: ='Cálculo humedad'!$L$55 -> 51587.30159 | I55: ='Cálculo humedad'!$J$56 -> -5.870020964 | J55: ='Cálculo humedad'!$L$56 -> 95387.84067 | K55: ='Cálculo humedad'!$J$57 -> -8.187134503 | L55: ='Cálculo humedad'!$L$57 -> 133040.9357 | N55: 35 MPa | O55: 51587.30159 | P55: 95387.84067 | Q55: 133040.9357
E56: Vigueta 350-45 Mpa | F56: 350-450 kg/cm2 | G56: ='Cálculo humedad'!$J$61 -> 0 | H56: ='Cálculo humedad'!$L$61 -> 0 | I56: ='Cálculo humedad'!$J$62 -> 0 | J56: ='Cálculo humedad'!$L$62 -> 0 | K56: ='Cálculo humedad'!$J$63 -> 0 | L56: ='Cálculo humedad'!$L$63 -> 0 | N56: Vigueta 350-45 Mpa | O56: 0 | P56: 0 | Q56: 0
E57: Durmiente 65 Mpa | F57: 660 kg/cm2 | G57: ='Cálculo humedad'!$J$66 -> 0 | H57: ='Cálculo humedad'!$L$66 -> 0 | I57: ='Cálculo humedad'!$J$67 -> 0 | J57: ='Cálculo humedad'!$L$67 -> 0 | K57: ='Cálculo humedad'!$J$68 -> 0 | L57: ='Cálculo humedad'!$L$68 -> 0 | N57: Durmiente 65 Mpa | O57: 0 | P57: 0 | Q57: 0
F58: Total especificado : | H58: =+SUM(H52:H57) -> 100861.0505 | J58: =+SUM(J52:J57) -> 186301.3774 | L58: =+SUM(L52:L57) -> 259606.8398
F59: =+F45 -> Total producido m3: | H59: =+(H58/$H$70)*$G$45 -> 100861.0505 | J59: =+(J58/$H$70)*$G$45 -> 186301.3774 | L59: =+(L58/$H$70)*$G$45 -> 259606.8398
E61: SU PRODUCCIÓN DE CONCRETO ANUAL : | H61: REPARTICION Y CONSUMO CEMENTO
E62: Resistencia concreto | G62: Producción | H62: Concreto | I62: Cemento
E63: Mpa | F63: kg/cm2* | G63: Entrar % | H63: M3 | I63: Tonelada | M63: Concreto m3 | N63: Cemento t
E64: =+E38 -> Bloque 10-20 MPa | F64: 90-200 kg/cm2 | G64: 0 | H64: ='Cálculo cemento'!G18 -> 0 | I64: ='Cálculo cemento'!I18 -> 0 | L64: =+E64 -> Bloque 10-20 MPa | M64: =+H64 -> 0 | N64: =+I64 -> 0
E65: 25 MPa | F65: 250 kg/cm2 | G65: 0.5 | H65: ='Cálculo cemento'!G19 -> 25000 | I65: ='Cálculo cemento'!I19 -> 8125 | L65: =+E65 -> 25 MPa | M65: =+H65 -> 25000 | N65: =+I65 -> 8125
E66: 30 MPa | F66: 300-320 kg/cm2 | G66: 0 | H66: ='Cálculo cemento'!G20 -> 0 | I66: ='Cálculo cemento'!I20 -> 0 | L66: 30 MPa | M66: 0 | N66: 0
E67: 35 MPa | F67: 350-400 kg/cm2 | G67: 0.5 | H67: ='Cálculo cemento'!G21 -> 25000 | I67: ='Cálculo cemento'!I21 -> 8750 | L67: 35 MPa | M67: 25000 | N67: 8750
E68: Vigueta 350-45 Mpa | F68: 350-450 kg/cm2 | G68: 0 | H68: ='Cálculo cemento'!G22 -> 0 | I68: ='Cálculo cemento'!I22 -> 0 | L68: Vigueta 350-45 Mpa | M68: 0 | N68: 0
E69: Durmiente 65 Mpa | F69: 660 kg/cm2 | G69: 0 | H69: ='Cálculo cemento'!G23 -> 0 | I69: ='Cálculo cemento'!I23 -> 0 | L69: Durmiente 65 Mpa | M69: 0 | N69: 0
F70: =+F44 -> Total detallado % : | G70: =+G44 -> 1 | H70: ='Cálculo cemento'!$G$24 -> 50000 | I70: ='Cálculo cemento'!$I$24 -> 16875
F71: =+F45 -> Total producido m3: | G71: =+G45 -> 50000 | I71: ='Cálculo cemento'!$I$25 -> 16875
E74: SI CAMBIA DE REVOLVEDORA A TWIN-SHAFT : AHORRO DE 9-14 % de CEMENTO : POR AÑO.
E76: Resistencia concreto | G76: Producción anual | H76: Ahorro cemento
E77: Mpa | F77: kg/cm2* | G77: % entrados | H77: ton/año | I77: USD/año | M77: kg | N77: USD
E78: =+E38 -> Bloque 10-20 MPa | F78: 90-200 kg/cm2 | G78: 0 | H78: 0 | I78: 0 | L78: =+E78 -> Bloque 10-20 MPa | M78: =+H91*1000 -> 0 | N78: =+I91 -> 0
E79: 25 MPa | F79: 250 kg/cm2 | G79: 0.5 | H79: 1080.625 | I79: 140481.25 | L79: 25 MPa | M79: =+H92*1000 -> 1486875 | N79: =+I92 -> 193293.75
E80: 30 MPa | F80: 300-320 kg/cm2 | G80: 0 | H80: 0 | I80: 0 | L80: 30 MPa | M80: 0 | N80: =+I93 -> 0
E81: =+E40 -> 30 MPa | F81: =+F40 -> 300-320 kg/cm2 | G81: =+G41 -> 0.5 | H81: 1233.75 | I81: 160387.5 | L81: 30 MPa | M81: 1671250 | N81: =+I94 -> 217262.5
E82: =+E42 -> Vigueta 350-45 Mpa | F82: =+F42 -> 350-450 kg/cm2 | G82: =+G42 -> 0 | H82: 0 | I82: 0 | L82: Vigueta 350-45 Mpa | M82: 0 | N82: =+I95 -> 0
E83: =+E43 -> Durmiente 65 Mpa | F83: =+F43 -> 660 kg/cm2 | G83: =+G43 -> 0 | H83: 0 | I83: 0 | L83: Durmiente 65 Mpa | M83: 0 | N83: =+I96 -> 0
F84: =+F44 -> Total detallado % : | G84: =+SUM(G78:G83) -> 1 | H84: ='Cálculo cemento'!G42 -> 2314.375 | I84: =+SUM(I78:I83) -> 300868.75
F85: =+F45 -> Total producido m3: | G85: =+G45 -> 50000 | H85: =+H84 -> 2314.375 | I85: =+I84 -> 300868.75
E87: SI CAMBIO DE REVOLVEDORA A RING-PAN : AHORRO DE 20 % CEMENTO : POR AÑO.
E89: Resistencia concreto | G89: Producción anual | H89: Ahorro cemento
E90: Mpa | F90: kg/cm2* | G90: % entrados | H90: ton/año | I90: USD/año
E91: =+E52 -> Bloque 10-20 MPa | F91: =+F64 -> 90-200 kg/cm2 | G91: =+G64 -> 0 | H91: 0 | I91: 0
E92: =+E53 -> 25 MPa | F92: =+F65 -> 250 kg/cm2 | G92: 0.5 | H92: 1486.875 | I92: 193293.75
E93: 30 MPa | F93: 300-320 kg/cm2 | G93: 0 | H93: 0 | I93: 0
E94: 35 MPa | F94: 350-400 kg/cm2 | G94: 0.5 | H94: 1671.25 | I94: 217262.5
E95: Vigueta 350-45 Mpa | F95: 350-450 kg/cm2 | G95: 0 | H95: 0 | I95: 0
E96: Durmiente 65 Mpa | F96: 660 kg/cm2 | G96: 0 | H96: 0 | I96: 0
F97: =+F55 -> 350-400 kg/cm2 | G97: =+SUM(G91:G96) -> 1 | H97: ='Cálculo cemento'!P42 -> 3158.125 | I97: =+SUM(I91:I96) -> 410556.25
F98: =+F56 -> 350-450 kg/cm2 | G98: =+G71 -> 50000 | H98: =+H97 -> 3158.125 | I98: =+I97 -> 410556.25
E100: SI CAMBIA DE OLLA A MEZCLADOR LIEBHERR : AHORRO COSTO REVOLVEDORA.
E101: Resistencia concreto | G101: Producción anual | H101: Ahorro tiempo hormigonera
E102: Mpa | F102: kg/cm2 | G102: % entrados | H102: Valor USD/año | L102: Inversión olla | M102: Gazolina
E103: =+E38 -> Bloque 10-20 MPa | F103: 90-200 kg/cm2 | G103: 0 | H103: ='Cálculo cemento'!H48 -> 0 | K103: =+E103 -> Bloque 10-20 MPa | L103: =+H103 -> 0 | M103: =+H115 -> 0
E104: 25 MPa | F104: 250 kg/cm2 | G104: 0.5 | H104: ='Cálculo cemento'!H49 -> 18225 | K104: =+E104 -> 25 MPa | L104: =+H104 -> 18225 | M104: =+H116 -> 2292.5
E105: 30 MPa | F105: 300-320 kg/cm2 | G105: 0 | H105: ='Cálculo cemento'!H50 -> 0 | K105: 30 MPa | L105: 0 | M105: 0
E106: 35 MPa | F106: 350-400 kg/cm2 | G106: 0.5 | H106: ='Cálculo cemento'!H51 -> 36450 | K106: 35 MPa | L106: 36450 | M106: 4582.5
E107: Vigueta 350-45 Mpa | F107: 350-450 kg/cm2 | G107: 0 | H107: ='Cálculo cemento'!H52 -> 0 | K107: Vigueta 350-45 Mpa | L107: 0 | M107: 0
E108: Durmiente 65 Mpa | F108: 660 kg/cm2 | G108: 0 | H108: ='Cálculo cemento'!H53 -> 0 | K108: Durmiente 65 Mpa | L108: 0 | M108: 0
F109: =+F44 -> Total detallado % : | G109: =+G44 -> 1 | H109: ='Cálculo cemento'!H54 -> 54675
F110: =+F45 -> Total producido m3: | G110: =+G45 -> 50000 | H110: ='Cálculo cemento'!H55 -> 54675
E112: SI CAMBIA DE OLLA A MEZCLADOR LIEBHERR : AHORRO GAZOLINA.
E113: Resistencia concreto | G113: Producción anual | H113: Ahorro gazolina
E114: Mpa | F114: kg/cm2 | G114: % entrados | H114: Valor USD/año
E115: =+E38 -> Bloque 10-20 MPa | F115: 90-200 kg/cm2 | G115: 0 | H115: ='Cálculo cemento'!H59 -> 0
E116: 25 MPa | F116: 250 kg/cm2 | G116: 0.5 | H116: ='Cálculo cemento'!H60 -> 2292.5
E117: 30 MPa | F117: 300-320 kg/cm2 | G117: 0 | H117: ='Cálculo cemento'!H61 -> 0
E118: 35 MPa | F118: 350-400 kg/cm2 | G118: 0.5 | H118: ='Cálculo cemento'!H62 -> 4582.5
E119: Vigueta 350-45 Mpa | F119: 350-450 kg/cm2 | G119: 0 | H119: ='Cálculo cemento'!H63 -> 0
E120: Durmiente 65 Mpa | F120: 660 kg/cm2 | G120: 0 | H120: ='Cálculo cemento'!H64 -> 0
F121: =+F44 -> Total detallado % : | G121: =+G44 -> 1 | H121: ='Cálculo cemento'!H65 -> 6875
F122: =+F45 -> Total producido m3: | G122: =+G45 -> 50000 | H122: ='Cálculo cemento'!H66 -> 6875
E124: SI CAMBIO DE OLLA A TWIN-SHAFT LIEBHERR : AHORRO OLLA+GAZOLINA.
E125: Resistencia concreto | G125: Producción anual | H125: Ahorro gazolina
E126: Mpa | F126: kg/cm2 | G126: % entrados | H126: Valor USD/año
E127: =+E38 -> Bloque 10-20 MPa | F127: 90-200 kg/cm2 | G127: 0 | H127: =+H115+H103 -> 0
E128: 25 MPa | F128: 250 kg/cm2 | G128: 0.5 | H128: =+H116+H104 -> 20517.5
E129: 30 MPa | F129: 300-320 kg/cm2 | G129: 0 | H129: 0
E130: 35 MPa | F130: 350-400 kg/cm2 | G130: 0.5 | H130: 41032.5
E131: Vigueta 350-45 Mpa | F131: 350-450 kg/cm2 | G131: 0 | H131: 0
E132: Durmiente 65 Mpa | F132: 660 kg/cm2 | G132: 0 | H132: 0
F133: =+F44 -> Total detallado % : | G133: =+G44 -> 1 | H133: 61550
F134: =+F45 -> Total producido m3: | G134: =+G45 -> 50000 | H134: 61550
E136: SI CAMBIO DE OLLA A MTS : GAZOLINA : EMISION CO2 : Gramos/M3 :
F137: % | G137: m3/año | H137: Kg CO2 emitidos por año | L137: Emisión CO2 kg
E138: =+E38 -> Bloque 10-20 MPa | F138: 90-200 kg/cm2 | G138: 0 | H138: ='Cálculo CO2 directo'!H45 -> 0 | I138: kg/año | K138: =+E138 -> Bloque 10-20 MPa | L138: =+H138 -> 0
E139: 25 MPa | F139: 250 kg/cm2 | G139: 0.5 | H139: ='Cálculo CO2 directo'!H46 -> 5500 | I139: kg/año | K139: =+E139 -> 25 MPa | L139: =+H139 -> 5500
E140: 30 MPa | F140: 300-320 kg/cm2 | G140: 0 | H140: ='Cálculo CO2 directo'!H47 -> 0 | I140: kg/año | K140: 30 MPa | L140: 0
E141: 35 MPa | F141: 350-400 kg/cm2 | G141: 0.5 | H141: ='Cálculo CO2 directo'!H48 -> 11000 | I141: kg/año | K141: 35 MPa | L141: 11000
E142: Vigueta 350-45 Mpa | F142: 350-450 kg/cm2 | G142: 0 | H142: ='Cálculo CO2 directo'!H49 -> 0 | I142: kg/año | K142: Vigueta 350-45 Mpa | L142: 0
E143: Durmiente 65 Mpa | F143: 660 kg/cm2 | G143: 0 | H143: ='Cálculo CO2 directo'!H50 -> 0 | I143: kg/año | K143: Durmiente 65 Mpa | L143: 0
F144: =+F44 -> Total detallado % : | G144: =+G44 -> 1 | H144: ='Cálculo CO2 directo'!H51 -> 16500 | I144: kg/año
F145: =+F45 -> Total producido m3: | G145: =+G45 -> 50000 | H145: ='Cálculo CO2 directo'!H52 -> 66000 | I145: kg/año

Sheet Reemplazar Olla por Ring-pan
J5: SOLUCIONES LIEBHERR CON MEZCLADOR RING-PAN :
J6: RING-PAN : | L6: hasta 120 m3/hora, cualquier tipo de concreto.
B7: PLANTA DOSIFICADORA + REVOLVEDORA CAMION (OLLA) | J7: Solución n°1 : INSTALAR EL RING-PAN. | O7: Cuestionario técnico
J9: Planta dosificadora antes : | N9: Planta dosificadora después :
H11: AHORRO 15-20 %
H12: CEMENTO
J20: Solución n°2 : | L20: INSTALAR EL MEZCLADOR SOBRE PLATAFORMA.
L21: Cuestionario técnico.
H29: ITISA Tlaxcala, 2021.
J31: CEMEX Aeropuerto Texcoco. | N31: CEMEX Autopista Cd. Obregon
J35: Solución n°3 : PLANTA COMPLETA LIEBHERR. | O35: Precisión 0.5 %.
J36: MOBILMIX 0.5 CON Ring-pan 0.5 | N36: LCM 1.0 con Ring-pan 1.0
J37: 30 m3/hora | N37: 60 m3/hora
H46: HOLCIM Swiza, 2022.

Sheet Reemplazar Olla por TWIN-SHAFT
J5: SOLUCIONES LIEBHERR CON MEZCLADOR :
J6: TWIN-SHAFT : | L6: hasta 190 m3/hora, concreto hasta 45 MPa.
B7: PLANTA DOSIFICADORA + REVOLVEDORA CAMION (OLLA) | J7: Solución n°1 : INSTALAR EL TWIN-SHAFT | O7: Cuestionario técnico
J9: Planta dosificadora antes : | N9: Planta dosificadora después :
H11: AHORRO 8-13 %
H12: CEMENTO
J20: Solución n°2 : | L20: INSTALAR EL MEZCLADOR SOBRE PLATAFORMA.
L21: Cuestionario técnico.
J31: CEMEX Aeropuerto Texcoco. | N31: CEMEX Autopista Cd. Obregon
J32: Solución n°3 : | L32: MOBILE TWIN-SHAFT 4.5 MTS
J33: MEZCLADOR Y INGENIERIA LIEBHERR.
J41: Autopista Monterrey a Laredo; Magnamaq. | N41: Autopista Cd. Obregon a Hermosillo.
J42: Solución n°4 : PLANTA COMPLETA LIEBHERR. | O42: Precisión 0.5 %.
J43: LCM 3 con TWIN-SHAFT 3.0 | N43: Betomix Twin-shaft 2.5
J44: 150 m3/hora
J54: Solución n°5 : FABRICAR UNA PLANTA EN MEXICO CON
J55: MEZCLADOR Y INGENIERIA LIEBHERR.
J57: HOLCIM : Twin-shaft 4.5

Sheet Reemplazar Tilt por Twin-shaft
B7: PLANTA DOSIFICADORA + REVOLVEDORA TILT | L7: SOLUCIONES LIEBHERR CON MEZCLADOR :
L8: TWIN-SHAT; hasta 190 m3/hora.
L9: SOLUCION N°1 : INSTALAR UN TWIN-SHAFT.
O10: Cuestionario técnico
H12: AHORRO DE 8-13 % CEMENTO
P16: Revolvedora Tilt
L24: Solución n°2 : | N24: MOBILE TWIN-SHAFT 4.5 MTS
L25: MEZCLADOR Y INGENIERIA LIEBHERR.
L34: Autopista Monterrey a Laredo; Magnamaq. | P34: Autopista Cd. Obregon a Hermosillo.
I57: 0
H58: 593.25 | I58: 77122.5
H59: 548.1 | I59: 71253
H60: 592.9 | I60: 77077
H61: 598.5 | I61: 77805
H62: 0 | I62: 0
H70: 0 | I70: 0
H71: 945 | I71: 122850
H72: 1134 | I72: 147420
H73: 882 | I73: 114660
H74: 1134 | I74: 147420
H75: 0 | I75: 0

Sheet Factor CO2 (hidden)
C5: Producción anual : | D5: ='Ring-pan y Huella CO2'!$G$45 -> 50000
C7: Nombre | D7: SISTEMA AMASADO | E7: ENERGIA | F7: TRANSPORTE | G7: ENERGIA | H7: ENERGIA | I7: AMASADO | L7: TRANSPORTE | O7: TOTAL
E8: UTILIZASA | G8: UTILIZADA | H8: UTILIZADA | I8: CEMENTO | J8: ENERGIA | K8: TOTAL | L8: PARADAS | M8: ACTIVO | N8: TOTAL
E9: AMASADO | G9: PARADAS | H9: TRANSPORTE ACTIVO
C10: Rev. Diesel | D10: Revolvedora normal | E10: Diesel chasis | F10: Revolvedora+diesel | G10: Diesel | H10: Diesel | I10: 217.7 | J10: 0.308 | K10: =+I10+J10 -> 218.008 | L10: 0.66 | M10: 3.3 | N10: =+L10+M10 -> 3.96 | O10: =+N10+K10 -> 221.968
C11: Rev. Gas | D11: Revolvedora normal | E11: Gas chasis | F11: Revolvedora+gas | G11: Gas | H11: Gas | I11: =+I10 -> 217.7 | J11: 0.246 | K11: =+I11+J11 -> 217.946 | L11: 0.528 | M11: 2.64 | N11: =+L11+M11 -> 3.168 | O11: =+N11+K11 -> 221.114
C12: Rev Elec Diesel | D12: Revolvedora eléctrica Plug-in | E12: Electricidad CFE | F12: Revolvedora elec.+diesel | G12: Electricidad CFE | H12: Diesel | I12: =+I10 -> 217.7 | J12: 0.202 | K12: 217.902 | L12: 0.432 | M12: =+M10 -> 3.3 | N12: 3.732 | O12: 221.634
C13: Rev Elec Gas | D13: Revolvedora eléctrica Plug-in | E13: Electricidad CFE | F13: Revolvedora elec.+gas | G13: Electricidad CFE | H13: Gas | I13: =+I10 -> 217.7 | J13: 0.202 | K13: 217.902 | L13: =+L12 -> 0.432 | M13: =+M11 -> 2.64 | N13: 3.072 | O13: 220.974
C14: Tilt Diesel | D14: Revolvedora Tilt | E14: Electricidad CFE | F14: Revolvedora+diesel | G14: Diesel | H14: Diesel | I14: 213.3 | J14: 0.686 | K14: =+I14+J14 -> 213.986 | L14: =+L10 -> 0.66 | M14: 3.3 | N14: =+L14+M14 -> 3.96 | O14: =+N14+K14 -> 217.946
C15: Tilt Gas | D15: Revolvedora Tilt | E15: Electricidad CFE | F15: Revolvedora+gas | G15: Gas | H15: Gas | I15: =+I14 -> 213.3 | J15: =+J14 -> 0.686 | K15: 213.986 | L15: 0.528 | M15: 2.64 | N15: 3.168 | O15: 217.154
C16: Tilt Rev Elec Diesel | D16: Revolvedora Tilt | E16: Electricidad CFE | F16: Revolvedora elec.+diesel | G16: Electricidad CFE | H16: Diesel | I16: =+I14 -> 213.3 | J16: =+J14 -> 0.686 | K16: 213.986 | L16: 0.432 | M16: 3.3 | N16: 3.732 | O16: 217.718
C17: Tilt Rev Elec Gas | D17: Revolvedora Tilt | E17: Electricidad CFE | F17: Revolvedora elec.+gas | G17: Electricidad CFE | H17: Gas | I17: =+I14 -> 213.3 | J17: =+J14 -> 0.686 | K17: 213.986 | L17: 0.432 | M17: 2.64 | N17: 3.072 | O17: 217.058
C18: Twin-shaft Diesel | D18: Mezclador Twin-shaft LIEBHERR | E18: Electricidad CFE | F18: Revolvedora+diesel | G18: Diesel | H18: Diesel | I18: 187 | J18: 0.246 | K18: 187.246 | L18: =+L10 -> 0.66 | M18: =+M10 -> 3.3 | N18: 3.96 | O18: 191.206
C19: Twin-shaft Gas | D19: Mezclador Twin-shaft LIEBHERR | E19: Electricidad CFE | F19: Revolvedora+gas | G19: Gas | H19: Gas | I19: =+I18 -> 187 | J19: =+J18 -> 0.246 | K19: 187.246 | L19: =+L11 -> 0.528 | M19: 2.64 | N19: 3.168 | O19: 190.414
C20: Twin-shaft Rev Elec Diesel | D20: Mezclador Twin-shaft LIEBHERR | E20: Electricidad CFE | F20: Revolvedora elec.+diesel | G20: Electricidad CFE | H20: Diesel | I20: =+I18 -> 187 | J20: =+J18 -> 0.246 | K20: 187.246 | L20: =+L12 -> 0.432 | M20: 3.3 | N20: 3.732 | O20: 190.978
C21: Twin-shaft Rev Elec Gas | D21: Mezclador Twin-shaft LIEBHERR | E21: Electricidad CFE | F21: Revolvedora elec.+gas | G21: Electricidad CFE | H21: Gas | I21: =+I18 -> 187 | J21: =+J18 -> 0.246 | K21: 187.246 | L21: =+L13 -> 0.432 | M21: 2.64 | N21: 3.072 | O21: 190.318
C22: Ring-pan Diesel | D22: Mezclador Ring-pan LIEBHERR | E22: Electricidad CFE | F22: Revolvedora+diesel | G22: Diesel | H22: Diesel | I22: 177.7 | J22: 0.344 | K22: 178.044 | L22: =+L10 -> 0.66 | M22: =+M10 -> 3.3 | N22: 3.96 | O22: 182.004
C23: Ring-pan Gas | D23: Mezclador Ring-pan LIEBHERR | E23: Electricidad CFE | F23: Revolvedora+gas | G23: Gas | H23: Gas | I23: =+I22 -> 177.7 | J23: =+J22 -> 0.344 | K23: 178.044 | L23: =+L11 -> 0.528 | M23: 2.64 | N23: 3.168 | O23: 181.212
C24: Ring-pan Rev Elec Diesel | D24: Mezclador Ring-pan LIEBHERR | E24: Electricidad CFE | F24: Revolvedora elec.+diesel | G24: Electricidad CFE | H24: Diesel | I24: =+I22 -> 177.7 | J24: =+J22 -> 0.344 | K24: 178.044 | L24: =+L12 -> 0.432 | M24: 3.3 | N24: 3.732 | O24: 181.776
C25: Ring-pan Rev Elec Gas | D25: Mezclador Ring-pan LIEBHERR | E25: Electricidad CFE | F25: Revolvedora elec.+gas | G25: Electricidad CFE | H25: Gas | I25: =+I22 -> 177.7 | J25: =+J22 -> 0.344 | K25: 178.044 | L25: =+L13 -> 0.432 | M25: 2.64 | N25: 3.072 | O25: 181.116
I27: HUELLA CO2 EN KG PARA LA PRODUCCIION ANUAL
C28: =+C10 -> Rev. Diesel | I28: =+I10*$D$5 -> 10885000 | J28: =+J10*$D$5 -> 15400 | K28: 10900400 | L28: 33000 | M28: 165000 | N28: 198000 | O28: 11098400
C29: =+C11 -> Rev. Gas | I29: =+I11*$D$5 -> 10885000 | J29: 12300 | K29: 10897300 | L29: 26400 | M29: 132000 | N29: 158400 | O29: 11055700
C30: =+C12 -> Rev Elec Diesel | I30: =+I12*$D$5 -> 10885000 | J30: 10100 | K30: 10895100 | L30: 21600 | M30: 165000 | N30: 186600 | O30: 11081700
C31: =+C13 -> Rev Elec Gas | I31: =+I13*$D$5 -> 10885000 | J31: 10100 | K31: 10895100 | L31: 21600 | M31: 132000 | N31: 153600 | O31: 11048700
C32: =+C14 -> Tilt Diesel | I32: =+I14*$D$5 -> 10665000 | J32: 34300 | K32: 10699300 | L32: 33000 | M32: 165000 | N32: 198000 | O32: 10897300
C33: Tilt Gas | I33: =+I15*$D$5 -> 10665000 | J33: 34300 | K33: 10699300 | L33: 26400 | M33: 132000 | N33: 158400 | O33: 10857700
C34: Tilt Rev Elec Diesel | I34: =+I16*$D$5 -> 10665000 | J34: 34300 | K34: 10699300 | L34: 21600 | M34: 165000 | N34: 186600 | O34: 10885900
C35: Tilt Rev Elec Gas | I35: =+I17*$D$5 -> 10665000 | J35: 34300 | K35: 10699300 | L35: 21600 | M35: 132000 | N35: 153600 | O35: 10852900
C36: =+C18 -> Twin-shaft Diesel | I36: =+I18*$D$5 -> 9350000 | J36: 12300 | K36: 9362300 | L36: 33000 | M36: 165000 | N36: 198000 | O36: 9560300
C37: Twin-shaft Gas | I37: =+I19*$D$5 -> 9350000 | J37: 12300 | K37: 9362300 | L37: 26400 | M37: 132000 | N37: 158400 | O37: 9520700
C38: Twin-shaft Rev Elec Diesel | I38: =+I20*$D$5 -> 9350000 | J38: 12300 | K38: 9362300 | L38: 21600 | M38: 165000 | N38: 186600 | O38: 9548900
C39: Twin-shaft Rev Elec Gas | I39: =+I21*$D$5 -> 9350000 | J39: 12300 | K39: 9362300 | L39: 21600 | M39: 132000 | N39: 153600 | O39: 9515900
C40: Ring-pan Diesel | I40: =+I22*$D$5 -> 8885000 | J40: 17200 | K40: 8902200 | L40: 33000 | M40: 165000 | N40: 198000 | O40: 9100200
C41: Ring-pan Gas | I41: =+I23*$D$5 -> 8885000 | J41: 17200 | K41: 8902200 | L41: 26400 | M41: 132000 | N41: 158400 | O41: 9060600
C42: Ring-pan Rev Elec Diesel | I42: =+I24*$D$5 -> 8885000 | J42: 17200 | K42: 8902200 | L42: 21600 | M42: 165000 | N42: 186600 | O42: 9088800
C43: Ring-pan Rev Elec Gas | I43: =+I25*$D$5 -> 8885000 | J43: 17200 | K43: 8902200 | L43: 21600 | M43: 132000 | N43: 153600 | O43: 9055800
I45: HUELLA CO2 EN TONELADA PARA LA PRODUCCIION ANUAL
C46: =+C10 -> Rev. Diesel | I46: =+(I10*$D$5)/1000 -> 10885 | J46: =+(J10*$D$5)/1000 -> 15.4 | K46: 10900.4 | L46: 33 | M46: 165 | N46: 198 | O46: 11098.4
C47: =+C11 -> Rev. Gas | I47: =+(I11*$D$5)/1000 -> 10885 | J47: 12.3 | K47: 10897.3 | L47: 26.4 | M47: 132 | N47: 158.4 | O47: 11055.7
C48: =+C12 -> Rev Elec Diesel | I48: =+(I12*$D$5)/1000 -> 10885 | J48: 10.1 | K48: 10895.1 | L48: 21.6 | M48: 165 | N48: 186.6 | O48: 11081.7
C49: =+C13 -> Rev Elec Gas | I49: =+(I13*$D$5)/1000 -> 10885 | J49: 10.1 | K49: 10895.1 | L49: 21.6 | M49: 132 | N49: 153.6 | O49: 11048.7
C50: =+C14 -> Tilt Diesel | I50: =+(I14*$D$5)/1000 -> 10665 | J50: 34.3 | K50: 10699.3 | L50: 33 | M50: 165 | N50: 198 | O50: 10897.3
C51: Tilt Gas | I51: =+(I15*$D$5)/1000 -> 10665 | J51: 34.3 | K51: 10699.3 | L51: 26.4 | M51: 132 | N51: 158.4 | O51: 10857.7
C52: Tilt Rev Elec Diesel | I52: =+(I16*$D$5)/1000 -> 10665 | J52: 34.3 | K52: 10699.3 | L52: 21.6 | M52: 165 | N52: 186.6 | O52: 10885.9
C53: Tilt Rev Elec Gas | I53: =+(I17*$D$5)/1000 -> 10665 | J53: 34.3 | K53: 10699.3 | L53: 21.6 | M53: 132 | N53: 153.6 | O53: 10852.9
C54: =+C18 -> Twin-shaft Diesel | I54: =+(I18*$D$5)/1000 -> 9350 | J54: 12.3 | K54: 9362.3 | L54: 33 | M54: 165 | N54: 198 | O54: 9560.3
C55: Twin-shaft Gas | I55: =+(I19*$D$5)/1000 -> 9350 | J55: 12.3 | K55: 9362.3 | L55: 26.4 | M55: 132 | N55: 158.4 | O55: 9520.7
C56: Twin-shaft Rev Elec Diesel | I56: =+(I20*$D$5)/1000 -> 9350 | J56: 12.3 | K56: 9362.3 | L56: 21.6 | M56: 165 | N56: 186.6 | O56: 9548.9
C57: Twin-shaft Rev Elec Gas | I57: =+(I21*$D$5)/1000 -> 9350 | J57: 12.3 | K57: 9362.3 | L57: 21.6 | M57: 132 | N57: 153.6 | O57: 9515.9
C58: Ring-pan Diesel | I58: =+(I22*$D$5)/1000 -> 8885 | J58: 17.2 | K58: 8902.2 | L58: 33 | M58: 165 | N58: 198 | O58: 9100.2
C59: Ring-pan Gas | I59: =+(I23*$D$5)/1000 -> 8885 | J59: 17.2 | K59: 8902.2 | L59: 26.4 | M59: 132 | N59: 158.4 | O59: 9060.6
C60: Ring-pan Rev Elec Diesel | I60: =+(I24*$D$5)/1000 -> 8885 | J60: 17.2 | K60: 8902.2 | L60: 21.6 | M60: 165 | N60: 186.6 | O60: 9088.8
C61: Ring-pan Rev Elec Gas | I61: =+(I25*$D$5)/1000 -> 8885 | J61: 17.2 | K61: 8902.2 | L61: 21.6 | M61: 132 | N61: 153.6 | O61: 9055.8

Sheet Cálculo cemento (hidden)
E3: Costo cemento : | G3: 2.6 | H3: Pesos/kg | I3: =+G3/G4 -> 0.13 | J3: USD
E4: 1 USD = | G4: 20 | H4: Pesos
F7: ='Ring-pan y Huella CO2'!#REF! -> 
F8: ='Ring-pan y Huella CO2'!F10 -> 1. Cálculo ahorros si utiliza un mezclador LIEBHERR al lugar de una Revolvedora Olla o TILT. | G8: ='Ring-pan y Huella CO2'!G10 -> 0
F9: ='Ring-pan y Huella CO2'!F12 -> 3. Cálculo ahorro cemento si utiliza una Sistema de Medición Humedad LIEBHERR. | G9: ='Ring-pan y Huella CO2'!G11 -> 0
F10: ='Ring-pan y Huella CO2'!#REF! -> 
F11: ='Ring-pan y Huella CO2'!B8 -> EQUIPO FRANCES SA DE CV, Colima, 21 de Junio 2020, actualizado Jun. 22 2022.
E15: SU PRODUCCIÓN DE CONCRETO ANUAL :
F16: % | G16: m3/año | H16: Cemento consumido con Olla* : | P16: Tipo concreto | Q16: m3/año | X16: Ahorro entre Olla y Planetario o Twin-shaft :
H17: kg/m3 | I17: t/año | X17: 15 Mpa* | Y17: 20 | Z17: =+Y17/AA17 ->  | AA17: ='Ring-pan y Huella CO2'!#REF! ->  | AB17: 0.1333333333
D18: Bloque n°1 Sólido 5MPa | E18: 40-50 kg/cm2 | F18: ='Ring-pan y Huella CO2'!G38 -> 0 | G18: =+F18*$F$25 -> 0 | H18: ='Ring-pan y Huella CO2'!I38 -> 0 | I18: =+G18*H18/1000 -> 0 | P18: <25Mpa | Q18: =+G18 -> 0 | R18: =+F18 -> 0 | X18: 25 MPa | Y18: 26.7875 | Z18: =+Y18/AA18 -> 0.10715 | AA18: 250 | AB18: 0.10715
D19: ='Ring-pan y Huella CO2'!$E$39 -> 25 MPa | E19: 90 kg/cm2 | F19: ='Ring-pan y Huella CO2'!G39 -> 0.5 | G19: 25000 | H19: ='Ring-pan y Huella CO2'!I39 -> 325 | I19: =+G19*H19/1000 -> 8125 | P19: 25 MPa | Q19: =+G19 -> 25000 | R19: =+F19 -> 0.5 | X19: 30 MPa | Y19: 26.65 | Z19: =+Y19/AA19 -> 0.08883333333 | AA19: 300 | AB19: 0.08883333333
D20: Prefabricado 35 MPa | E20: 357 kg/cm2 | F20: ='Ring-pan y Huella CO2'!G40 -> 0 | G20: 0 | H20: ='Ring-pan y Huella CO2'!I40 -> 0 | I20: 0 | P20: 35 MPa | Q20: 0 | R20: 0 | X20: 35 MPa | Y20: 49.4 | Z20: 0.1411428571 | AA20: 350 | AB20: 0.1411428571
D21: Prefabricado 35 MPa | E21: 357 kg/cm2 | F21: ='Ring-pan y Huella CO2'!G41 -> 0.5 | G21: 25000 | H21: 350 | I21: =+G21*H21/1000 -> 8750
D22: Vigueta 45 Mpa | E22: 455 kg/cm2 | F22: ='Ring-pan y Huella CO2'!G42 -> 0 | G22: 0 | H22: 450 | I22: 0 | P22: 50 Mpa | Q22: 0 | R22: 0 | X22: 50 MPa | Y22: 51.8 | Z22: 0.1151111111 | AA22: 450 | AB22: 0.1151111111
D23: Durmiento 65 Mpa | E23: 663 kg/cm2 | F23: ='Ring-pan y Huella CO2'!$G$43 -> 0 | G23: 0 | H23: 550 | I23: 0 | P23: 65 Mpa | Q23: 0 | R23: 0 | X23: 65 MPa | Y23: =+AA23*Z23 -> 65.55 | Z23: 0.115 | AA23: 570 | AB23: 0.1151111111
E24: ='Ring-pan y Huella CO2'!F44 -> Total detallado % : | F24: =+SUM(F18:F23) -> 1 | G24: =+SUM(G18:G23) -> 50000 | H24: =IFERROR(+SUM(I18:I23)*1000/G24,0) -> 337.5 | I24: =+SUM(I18:I23) -> 16875
E25: ='Ring-pan y Huella CO2'!F45 -> Total producido m3: | F25: ='Ring-pan y Huella CO2'!$G$45 -> 50000 | I25: =+(F25*H24)/1000 -> 16875
Q29: Total | R29: =+SUM(#REF!) ->  | S29: =+SUM(#REF!) ->  | T29: =+SUM(#REF!) ->  | U29: =+SUM(#REF!) ->  | V29: =+SUM(#REF!) ->  | W29: =+SUM(#REF!) -> 
E30: SI CAMBIO DE OLLA A MEZCLADOR : AHORRO DE 9-14% de CEMENTO :
F33: % | G33: TWIN-SHAFT con Olla | I33: Tilt | J33: Twin-shaft | K33: TILT vs Olla | M33: DW versus Tilt | O33: Ring-pan | P33: Ring-pan versus Olla | R33: Ring-pan vs Tilt
G34: t cemento | H34: Valor USD | J34: vs Olla | K34: % ahorro | L34: t cemento | M34: t | N34: USD | O34: Ahorros | P34: cemento
P35: toneladas | Q35: USD | R35: t | S35: USD
D36: ='Ring-pan y Huella CO2'!E38 -> Bloque 10-20 MPa | E36: ='Ring-pan y Huella CO2'!F38 -> 90-200 kg/cm2 | F36: =+F18 -> 0 | G36: =+I18*J36 -> 0 | H36: =+G36*$I$3*1000 -> 0 | I36: =+I18*(K36)*$I$3*1000 -> 0 | J36: 0.133 | K36: 0.02 | L36: =+K36*I18 -> 0 | M36: =+G36-L36 -> 0 | N36: =+H36-I36 -> 0 | O36: =+J36+0.05 -> 0.183 | P36: =+O36*I18 -> 0 | Q36: =+P36*$I$3*1000 -> 0 | R36: =+P36-L36 -> 0 | S36: =+Q36-I36 -> 0
D37: ='Ring-pan y Huella CO2'!E39 -> 25 MPa | E37: ='Ring-pan y Huella CO2'!F39 -> 250 kg/cm2 | F37: 0.5 | G37: 1080.625 | H37: =+G37*$I$3*1000 -> 140481.25 | I37: =+I19*(K37)*$I$3*1000 -> 21125 | J37: 0.133 | K37: 0.02 | L37: =+K37*I19 -> 162.5 | M37: =+G37-L37 -> 918.125 | N37: =+H37-I37 -> 119356.25 | O37: =+J37+0.05 -> 0.183 | P37: 1486.875 | Q37: =+P37*$I$3*1000 -> 193293.75 | R37: =+P37-L37 -> 1324.375 | S37: =+Q37-I37 -> 172168.75
D38: ='Ring-pan y Huella CO2'!E40 -> 30 MPa | E38: ='Ring-pan y Huella CO2'!F40 -> 300-320 kg/cm2 | F38: 0 | G38: 0 | H38: 0 | I38: 0 | J38: 0.107 | K38: 0.02 | L38: 0 | M38: 0 | N38: 0 | O38: 0.157 | P38: 0 | Q38: 0 | R38: 0 | S38: 0
D39: ='Ring-pan y Huella CO2'!E41 -> 35 MPa | E39: ='Ring-pan y Huella CO2'!F41 -> 350-400 kg/cm2 | F39: 0.5 | G39: 1233.75 | H39: 160387.5 | I39: 22750 | J39: 0.141 | K39: 0.02 | L39: 175 | M39: 1058.75 | N39: 137637.5 | O39: 0.191 | P39: 1671.25 | Q39: 217262.5 | R39: 1496.25 | S39: 194512.5
D40: ='Ring-pan y Huella CO2'!E42 -> Vigueta 350-45 Mpa | E40: ='Ring-pan y Huella CO2'!F42 -> 350-450 kg/cm2 | F40: 0 | G40: 0 | H40: 0 | I40: 0 | J40: 0.115 | K40: 0.02 | L40: 0 | M40: 0 | N40: 0 | O40: 0.165 | P40: 0 | Q40: 0 | R40: 0 | S40: 0
D41: ='Ring-pan y Huella CO2'!E43 -> Durmiente 65 Mpa | E41: ='Ring-pan y Huella CO2'!F43 -> 660 kg/cm2 | F41: 0 | G41: 0 | H41: 0 | I41: 0 | J41: 0.115 | K41: 0.02 | L41: 0 | M41: 0 | N41: 0 | O41: 0.165 | P41: 0 | Q41: 0 | R41: 0 | S41: 0
E42: =+E24 -> Total detallado % : | F42: =+SUM(F36:F41) -> 1 | G42: =+SUM(G36:G41) -> 2314.375 | H42: =+SUM(H36:H41) -> 300868.75 | I42: =+SUM(I36:I41) -> 43875 | L42: =+SUM(L36:L41) -> 337.5 | M42: =+SUM(M36:M41) -> 1976.875 | N42: 256993.75 | P42: =+SUM(P36:P41) -> 3158.125 | Q42: 410556.25 | S42: 366681.25
E43: =+E25 -> Total producido m3: | F43: =+F25 -> 50000 | G43: =+(G42/G24)*F25 -> 2314.375 | H43: =+G43*I3*1000 -> 300868.75 | I43: =+(I42/G24)*F43 -> 43875 | L43: A calculer | Q43: A calculer
E46: SI CAMBIO DE OLLA A MTS : AHORRO DE OLLA : TIEMPO PARA MEZCLAR.
F47: % | G47: USD/1000m3 | H47: Valor USD/año
E48: =+E36 -> 90-200 kg/cm2 | F48: =+F36 -> 0 | G48: =+G49 -> 729 | H48: =+G48*G18/1000 -> 0
E49: =+E37 -> 250 kg/cm2 | F49: 0.5 | G49: 729 | H49: 18225
E50: =+E38 -> 300-320 kg/cm2 | F50: 0 | G50: 1021 | H50: 0
E51: =+E39 -> 350-400 kg/cm2 | F51: 0.5 | G51: 1458 | H51: 36450
E52: =+E40 -> 350-450 kg/cm2 | F52: 0 | G52: 1896 | H52: 0
E53: =+E41 -> 660 kg/cm2 | F53: 0 | G53: 2188 | H53: 0
E54: =+E24 -> Total detallado % : | F54: =+F24 -> 1 | H54: =+SUM(H48:H53) -> 54675
E55: =+E25 -> Total producido m3: | F55: =+F25 -> 50000 | G55: =+F25 -> 50000 | H55: =+(H54/G24)*G55 -> 54675
E57: SI CAMBIO DE OLLA A MTS : AHORRO GAZOLINA :
F58: % | G58: USD/1000m3 | H58: Valor USD/año
E59: =+E36 -> 90-200 kg/cm2 | F59: =+F36 -> 0 | G59: =+G60 -> 91.7 | H59: =+G18*G59/1000 -> 0
E60: =+E37 -> 250 kg/cm2 | F60: 0.5 | G60: 91.7 | H60: 2292.5
E61: =+E38 -> 300-320 kg/cm2 | F61: 0 | G61: 128.3 | H61: 0
E62: =+E39 -> 350-400 kg/cm2 | F62: 0.5 | G62: 183.3 | H62: 4582.5
E63: =+E40 -> 350-450 kg/cm2 | F63: 0 | G63: 238.3 | H63: 0
E64: =+E41 -> 660 kg/cm2 | F64: 0 | G64: 275 | H64: 0
E65: =+E24 -> Total detallado % : | F65: =+F24 -> 1 | H65: =+SUM(H59:H64) -> 6875
E66: =+E25 -> Total producido m3: | F66: =+F25 -> 50000 | G66: =+F37 -> 0.5 | H66: =+(H65/G24)*F66 -> 6875

Sheet Cálculo humedad (hidden)
E3: Costo cemento : | J3: 2.6 | M3: Pesos/kg | N3: =+J3/J4 -> 0.13 | O3: USD/kg
E4: 1 USD = | J4: 20 | M4: Pesos
F7: MEZCLADO CENTRAL : PARTE N°4 : Ahorros y soluciones LIEBHERR.
F8: 4.1. P4 : 1. Cálculo ahorros en cemento si utiliza un mezclador Ring-pan
F9: 2. Cáculco ahorro cemento si utiliza una Sonda de humedad LIEBHERR FMS.
F10: Perfil : bloque, pretensado y prefabricado volumen entre 5,000 m3/año y 50,000 m3/año.
E11: ='Ring-pan y Huella CO2'!$B$8 -> EQUIPO FRANCES SA DE CV, Colima, 21 de Junio 2020, actualizado Jun. 22 2022.
E13: Fórmula de Bolomey :
E14: Rb28 = G x Rc x (C/A – 0,5)
E15: Coeficiente agregado G= | H15: 0.5
E16: Clase resistencia cemento Rc = | H16: 40
E17: Consumo cemento por 1 MPa = | H17: 5 | I17: kg
S19: 42 | T19: GxRc= | U19: =+H15*S19 -> 21
E20: Producción estimada total : | H20: ='Ring-pan y Huella CO2'!$G$45 -> 50000
E21: Humedad mínima : | H21: ='Ring-pan y Huella CO2'!K44 -> 0.01
E22: Humedad maxima : | H22: ='Ring-pan y Huella CO2'!K45 -> 0.03
E23: Variación humedad : | H23: =+H22-H21 -> 0.02
H26: Agua | I26: Cemento | J26: Agua/Cemento | K26: Rb28 teórica | L26: Agregados | M26: Producción
E27: Bloque n°1 Sólido 5 MPa | H27: ='Ring-pan y Huella CO2'!H38 -> 0 | I27: ='Ring-pan y Huella CO2'!I38 -> 0 | J27: =IFERROR(+H27/I27,0) -> 0 | K27: =IFERROR(+$H$15*$H$16*((1/J27)-0.5),0) -> 0 | L27: ='Ring-pan y Huella CO2'!J38 -> 0 | M27: ='Cálculo cemento'!$G$18 -> 0
E28: Boque n°2 Hueco 10-15 MPa | H28: ='Ring-pan y Huella CO2'!H39 -> 180 | I28: ='Ring-pan y Huella CO2'!I39 -> 325 | J28: =IFERROR(+H28/I28,0) -> 0.5538461538 | K28: =IFERROR(+$H$15*$H$16*((1/J28)-0.5),0) -> 26.11111111 | L28: ='Ring-pan y Huella CO2'!J39 -> 1650 | M28: ='Cálculo cemento'!$G$19 -> 25000
E29: Total estimado Bloque | M29: ='Cálculo cemento'!$G$24 -> 50000
E30: Prefabricado n°1 30-40 MPa | H30: ='Ring-pan y Huella CO2'!H40 -> 0 | I30: ='Ring-pan y Huella CO2'!I40 -> 0 | J30: =IFERROR(+H30/I30,0) -> 0 | K30: =IFERROR(+$H$15*$H$16*((1/J30)-0.5),0) -> 0 | L30: ='Ring-pan y Huella CO2'!J40 -> 0 | M30: ='Cálculo cemento'!$G$20 -> 0
E31: Prefabricado n°2 30-40 MPa | H31: ='Ring-pan y Huella CO2'!H41 -> 180 | I31: ='Ring-pan y Huella CO2'!I41 -> 350 | J31: =+H31/I31 -> 0.5142857143 | K31: =+$H$15*$H$16*((1/J31)-0.5) -> 28.88888889 | L31: ='Ring-pan y Huella CO2'!J41 -> 1600 | M31: ='Cálculo cemento'!$G$21 -> 25000
E32: Total estimado Prefabricado | M32: ='Cálculo cemento'!$G$24 -> 50000
E33: Vigueta 45 Mpa | H33: 145 | I33: 400 | J33: 0.3625 | K33: 45.17241379 | L33: ='Ring-pan y Huella CO2'!J42 -> 0 | M33: ='Cálculo cemento'!$I$22 -> 0
E34: Durmiento 65 Mpa | H34: 133 | I34: 450 | J34: 0.2955555556 | K34: 57.66917293 | L34: ='Ring-pan y Huella CO2'!J43 -> 0 | M34: ='Cálculo cemento'!$I$23 -> 0
C37: ='Ring-pan y Huella CO2'!$E$38 -> Bloque 10-20 MPa | E37: HUMEDAD : | G37: AUMENTO A/C : | I37: Nueva MPa | J37: PERDIDAS : | U37: Tipo concreto | V37: m3/año | AC37: Ahorro entre Olla y Planetario o Twin-shaft :
E38: Variación | F38: Agua l adicional | G38: A/C nuevo | H38: Variación + | I38: inferior | J38: Mpa | K38: kg cem/m3 | L38: Cemento USD/año
E39: 0.01 | F39: =+$L$27*E39 -> 0 | G39: =IFERROR(+($H$27+F39)/$I$27,0) -> 0 | H39: =IFERROR(+G39-$J$27,0) -> 0 | I39: =IFERROR(+$H$15*$H$16*((1/G39)-0.5),0) -> 0 | J39: =IFERROR(+I39-$K$27,0) -> 0 | K39: =-J39*$H$17 -> 0 | L39: =+K39*$N$3*'Cálculo cemento'!$G$18 -> 0 | AC39: 15 Mpa* | AD39: 20 | AE39: =+AD39/AF39 -> 0.1333333333 | AF39: 150 | AG39: 0.1333333333
E40: 0.02 | F40: =+$L$27*E40 -> 0 | G40: =IFERROR(+($H$27+F40)/$I$27,0) -> 0 | H40: =IFERROR(+G40-$J$27,0) -> 0 | I40: =IFERROR(+$H$15*$H$16*((1/G40)-0.5),0) -> 0 | J40: =IFERROR(+I40-$K$27,0) -> 0 | K40: =-J40*$H$17 -> 0 | L40: =+K40*$N$3*'Cálculo cemento'!$G$18 -> 0 | U40: <25Mpa | V40: =+I40 -> 0 | W40: =+F40 -> 0 | AC40: 25 MPa | AD40: 26.7875 | AE40: =+AD40/AF40 -> 0.10715 | AF40: 250 | AG40: 0.10715
E41: 0.03 | F41: =+$L$27*E41 -> 0 | G41: =IFERROR(+($H$27+F41)/$I$27,0) -> 0 | H41: =IFERROR(+G41-$J$27,0) -> 0 | I41: =IFERROR(+$H$15*$H$16*((1/G41)-0.5),0) -> 0 | J41: =IFERROR(+I41-$K$27,0) -> 0 | K41: 0 | L41: =+K41*$N$3*'Cálculo cemento'!$G$18 -> 0 | U41: 25 MPa | V41: =+I41 -> 0 | W41: =+F41 -> 0 | AC41: 30 MPa | AD41: 26.65 | AE41: =+AD41/AF41 -> 0.08883333333 | AF41: 300 | AG41: 0.08883333333
C42: ='Ring-pan y Huella CO2'!$E$39 -> 25 MPa | E42: HUMEDAD : | G42: AUMENTO A/C : | I42: Nueva MPa | J42: PERDIDAS :
E43: Variación | F43: Agua l adicional | G43: A/C nuevo | H43: Variación + | I43: inferior | J43: Mpa | K43: kg cem/m3 | L43: Cemento USD/año
E44: 0.01 | F44: =+$L$28*E44 -> 16.5 | G44: =IFERROR(+($H$28+F44)/$I$28,0) -> 0.6046153846 | H44: =IFERROR(+G44-$J$28,0) -> 0.05076923077 | I44: =IFERROR(+$H$15*$H$16*((1/G44)-0.5),0) -> 23.07888041 | J44: =IFERROR(+I44-$K$28,0) -> -3.032230704 | K44: =-J44*$H$17 -> 15.16115352 | L44: =+K44*$N$3*'Cálculo cemento'!$G$19 -> 49273.74894
E45: 0.02 | F45: =+$L$28*E45 -> 33 | G45: =IFERROR(+($H$28+F45)/$I$28,0) -> 0.6553846154 | H45: =IFERROR(+G45-$J$28,0) -> 0.1015384615 | I45: =IFERROR(+$H$15*$H$16*((1/G45)-0.5),0) -> 20.51643192 | J45: =IFERROR(+I45-$K$28,0) -> -5.594679186 | K45: =-J45*$H$17 -> 27.97339593 | L45: =+K45*$N$3*'Cálculo cemento'!$G$19 -> 90913.53678
E46: 0.03 | F46: 49.5 | G46: 0.7061538462 | H46: 0.1523076923 | I46: 18.32244009 | J46: -7.788671024 | K46: 38.94335512 | L46: =+K46*$N$3*'Cálculo cemento'!$G$19 -> 126565.9041
C47: Estimación bloque volumen total 2 % | L47: =IFERROR(+((L40+L45)/M29)*$H$20,0) -> 90913.53678
C48: ='Ring-pan y Huella CO2'!$E$40 -> 30 MPa | E48: HUMEDAD : | G48: AUMENTO A/C : | I48: Nueva MPa | J48: PERDIDAS :
E49: Variación | F49: Agua l adicional | G49: A/C nuevo | H49: Variación + | I49: inferior | J49: Mpa | K49: kg cem/m3 | L49: Cemento USD/año
E50: 0.01 | F50: =+$L$30*E50 -> 0 | G50: =IFERROR(+($H$30+F50)/$I$30,0) -> 0 | H50: =IFERROR(+G50-$J$30,0) -> 0 | I50: =IFERROR(+$H$15*$H$16*((1/G50)-0.5),0) -> 0 | J50: =IFERROR(+I50-$K$30,0) -> 0 | K50: =-J50*$H$17 -> 0 | L50: =+K50*$N$3*'Cálculo cemento'!$G$20 -> 0
E51: 0.02 | F51: =+$L$30*E51 -> 0 | G51: =IFERROR(+($H$30+F51)/$I$30,0) -> 0 | H51: =IFERROR(+G51-$J$30,0) -> 0 | I51: =IFERROR(+$H$15*$H$16*((1/G51)-0.5),0) -> 0 | J51: =IFERROR(+I51-$K$30,0) -> 0 | K51: =-J51*$H$17 -> 0 | L51: =+K51*$N$3*'Cálculo cemento'!$G$20 -> 0
E52: 0.03 | F52: 0 | G52: 0 | H52: 0 | I52: 0 | J52: 0 | K52: 0 | L52: =+K52*$N$3*'Cálculo cemento'!$G$20 -> 0
C53: ='Ring-pan y Huella CO2'!$E$41 -> 35 MPa | E53: HUMEDAD : | G53: AUMENTO A/C : | I53: Nueva MPa | J53: PERDIDAS :
E54: Variación | F54: Agua l adicional | G54: A/C nuevo | H54: Variación + | I54: inferior | J54: Mpa | K54: kg cem/m3 | L54: Cemento USD/año
E55: 0.01 | F55: =+$L$31*E55 -> 16 | G55: =IFERROR(+($H$31+F55)/$I$31,0) -> 0.56 | H55: =IFERROR(+G55-$J$31,0) -> 0.04571428571 | I55: =IFERROR(+$H$15*$H$16*((1/G55)-0.5),0) -> 25.71428571 | J55: =IFERROR(+I55-$K$31,0) -> -3.174603175 | K55: =-J55*$H$17 -> 15.87301587 | L55: =+K55*$N$3*'Cálculo cemento'!$G$21 -> 51587.30159
E56: 0.02 | F56: =+$L$31*E56 -> 32 | G56: =IFERROR(+($H$31+F56)/$I$31,0) -> 0.6057142857 | H56: =IFERROR(+G56-$J$31,0) -> 0.09142857143 | I56: =IFERROR(+$H$15*$H$16*((1/G56)-0.5),0) -> 23.01886792 | J56: =IFERROR(+I56-$K$31,0) -> -5.870020964 | K56: =-J56*$H$17 -> 29.35010482 | L56: =+K56*$N$3*'Cálculo cemento'!$G$21 -> 95387.84067
E57: 0.03 | F57: 48 | G57: 0.6514285714 | H57: 0.1371428571 | I57: 20.70175439 | J57: -8.187134503 | K57: 40.93567251 | L57: =+K57*$N$3*'Cálculo cemento'!$G$21 -> 133040.9357
C58: Estimación prefabricado volumen total 2% | L58: =IFERROR(+((L51+L56)/M32)*$H$20,0) -> 95387.84067
C59: ='Ring-pan y Huella CO2'!$E$42 -> Vigueta 350-45 Mpa | E59: HUMEDAD : | G59: AUMENTO A/C : | I59: Nueva MPa | J59: PERDIDAS :
E60: Variación | F60: Agua l adicional | G60: A/C nuevo | H60: Variación + | I60: inferior | J60: Mpa | K60: kg cem/m3 | L60: Cemento USD/año
E61: 0.01 | F61: =+$L$33*E61 -> 0 | G61: =+($H$33+F61)/$I$33 -> 0.3625 | H61: =+G61-$J$33 -> 0 | I61: =+$H$15*$H$16*((1/G61)-0.5) -> 45.17241379 | J61: =+I61-$K$33 -> 0 | K61: =-J61*$H$17 -> 0 | L61: =+K61*$N$3*'Cálculo cemento'!$G$22 -> 0
E62: 0.02 | F62: =+$L$33*E62 -> 0 | G62: =+($H$33+F62)/$I$33 -> 0.3625 | H62: =+G62-$J$33 -> 0 | I62: =+$H$15*$H$16*((1/G62)-0.5) -> 45.17241379 | J62: =+I62-$K$33 -> 0 | K62: =-J62*$H$17 -> 0 | L62: =+K62*$N$3*'Cálculo cemento'!$G$22 -> 0
E63: 0.03 | F63: 0 | G63: 0.3625 | H63: 0 | I63: 45.17241379 | J63: 0 | K63: 0 | L63: =+K63*$N$3*'Cálculo cemento'!$G$22 -> 0
C64: ='Ring-pan y Huella CO2'!$E$43 -> Durmiente 65 Mpa | E64: HUMEDAD : | G64: AUMENTO A/C : | I64: Nueva MPa | J64: PERDIDAS :
E65: Variación | F65: Agua l adicional | G65: A/C nuevo | H65: Variación + | I65: inferior | J65: Mpa | K65: kg cem/m3 | L65: Cemento USD/año
E66: 0.01 | F66: =+$L$34*E66 -> 0 | G66: =+($H$34+F66)/$I$34 -> 0.2955555556 | H66: =+G66-$J$34 -> 0 | I66: =+$H$15*$H$16*((1/G66)-0.5) -> 57.66917293 | J66: =+I66-$K$34 -> 0 | K66: =-J66*$H$17 -> 0 | L66: =+K66*$N$3*'Cálculo cemento'!$G$23 -> 0
E67: 0.02 | F67: =+$L$34*E67 -> 0 | G67: =+($H$34+F67)/$I$34 -> 0.2955555556 | H67: =+G67-$J$34 -> 0 | I67: =+$H$15*$H$16*((1/G67)-0.5) -> 57.66917293 | J67: =+I67-$K$34 -> 0 | K67: =-J67*$H$17 -> 0 | L67: =+K67*$N$3*'Cálculo cemento'!$G$23 -> 0
E68: 0.03 | F68: 0 | G68: 0.2955555556 | H68: 0 | I68: 57.66917293 | J68: 0 | K68: 0 | L68: =+K68*$N$3*'Cálculo cemento'!$G$23 -> 0
G70: Suma estimado perdidas a 2 % | J70: =+J47+J58+J62+J67 -> 0 | L70: =+L47+L58+L62+L67 -> 186301.3774
J71: Necesita un Macro VisualBasic para extraer o calcular
J72: la bajada de MPa sola o de varios concretos

Sheet Cálculo CO2 directo (hidden)
E3: Costo cemento : | G3: 2.3 | H3: Pesos/kg
E4: 1 USD = | G4: 20 | H4: Pesos
E7: MEZCLADO CENTRAL : 4. SU SITUACION. | M7: Hoja 2 : cálculos.
E8: 4.0.5. Cálculo de sus ahorros de USD si utiliza un Mobile Twin-shaft 4.5 m3
E9: al lugar de Plandta dosificadora+Hormigonera ("Olla").
E10: ='Ring-pan y Huella CO2'!$B$8 -> EQUIPO FRANCES SA DE CV, Colima, 21 de Junio 2020, actualizado Jun. 22 2022.
E12: DATOS FIJOS :
E13: ´-Tipo de cambio 1 Pesos por un USD | J13: Pesos | K13: 20
E14: -Hora de trabajo de una olla al año = 8 horas x 5 dias x 50 semanas = | J14: horas | K14: 2000
J15: segundos | K15: =+K14*3600 -> 7200000
E16: ´-Precio de una Olla+Camión = | J16: USD | K16: 140000
E17: ´Consumo gazolina por hora | J17: Litro | K17: 8
E18: ´Consumo gazolina por segundo | J18: Segundo | K18: =+K17/3600 -> 0.002222222222
E19: ´Costo gazolina por hora = 8 litros x 22 Pesos / tipo cambio = | J19: USD por hora | K19: =8*22/K13 -> 8.8
J20: USD por segundo | K20: =+K19/3600 -> 0.002444444444
E21: ´Volumen de concreto por olla = | J21: m3 | K21: 8
E22: CALCULO DEL CO2 POR M3 DEL MOTOR DE LA REVOLVEDORA :
E23: A 15 C°C un litro de diesel pesar, masa volumétrica kg/m3 | J23: gramo/l | K23: 835
E24: Contiene en atomo de Carbono C | J24: % | K24: 86.2
E25: Cantidad de C pero litro de diesel | J25: gramo | K25: 720
E26: Para quemar este C, hace falta en Oxigeno O | J26: gramo | K26: 1920
E27: Cantidad de CO2 producido C+O por litro | J27: gramo/litro | K27: =+K26+K25 -> 2640
E28: Cantidad de CO2 producido C+O por litro | J28: kg/litro | K28: =+K27/1000 -> 2.64
E30: CALCULO DEL CO2 POR M3 DEL MOTOR DE LA REVOLVEDORA : | K30: Primera estimación transporte :
K31: 20 litros/100 km si 100km/jourx4 semainex12 mois=24,000 km
E32: TIEMPO Y DEL MEZCLADO FIJO CON LA OLLA POR M3. | K32: 4 voyage/jour soient 32 m3 donc 20/32=0.625 l/m3
F33: Tiempo de | G33: Tiempo seg. | H33: EMISION CO2 | K33: ´x 2,64 g CO"=1.65 kg CO2/m3
F34: mezclado min. | G34: por m3 | H34: Litro diesel/m3 | I34: CO2 g/m3 | J34: CO2 kg/m3
E35: ='Ring-pan y Huella CO2'!E103 -> Bloque 10-20 MPa | F35: 3 | G35: =+(F35*60)/$K$21 -> 22.5 | H35: =+G35*$K$18 -> 0.05 | I35: =+H35*$K$27 -> 132 | J35: =+I35/1000 -> 0.132
E36: ='Ring-pan y Huella CO2'!E104 -> 25 MPa | F36: 5 | G36: 37.5 | H36: 0.08333333333 | I36: 220 | J36: 0.22
E37: ='Ring-pan y Huella CO2'!E105 -> 30 MPa | F37: 7 | G37: 52.5 | H37: 0.1166666667 | I37: 308 | J37: 0.308
E38: ='Ring-pan y Huella CO2'!E106 -> 35 MPa | F38: 10 | G38: 75 | H38: 0.1666666667 | I38: 440 | J38: 0.44
E39: ='Ring-pan y Huella CO2'!E107 -> Vigueta 350-45 Mpa | F39: 13 | G39: 97.5 | H39: 0.2166666667 | I39: 572 | J39: 0.572
E40: ='Ring-pan y Huella CO2'!E108 -> Durmiente 65 Mpa | F40: 15 | G40: 112.5 | H40: 0.25 | I40: 660 | J40: 0.66
E43: SI UTILIZA REVOLVEDORA : EMISION CO2 : G/M3 :
F44: % | G44: m3/año | H44: Kg CO2 emitidos por año
E45: ='Ring-pan y Huella CO2'!E103 -> Bloque 10-20 MPa | F45: ='Cálculo cemento'!F18 -> 0 | G45: ='Cálculo cemento'!G18 -> 0 | H45: =+G45*J35 -> 0
E46: ='Ring-pan y Huella CO2'!E104 -> 25 MPa | F46: ='Cálculo cemento'!F19 -> 0.5 | G46: ='Cálculo cemento'!G19 -> 25000 | H46: 5500 | I46: kg/año
E47: ='Ring-pan y Huella CO2'!E105 -> 30 MPa | F47: ='Cálculo cemento'!F20 -> 0 | G47: ='Cálculo cemento'!G20 -> 0 | H47: 0 | I47: kg/año
E48: ='Ring-pan y Huella CO2'!E106 -> 35 MPa | F48: ='Cálculo cemento'!F21 -> 0.5 | G48: ='Cálculo cemento'!G21 -> 25000 | H48: 11000 | I48: kg/año
E49: ='Ring-pan y Huella CO2'!E107 -> Vigueta 350-45 Mpa | F49: ='Cálculo cemento'!F22 -> 0 | G49: ='Cálculo cemento'!G22 -> 0 | H49: 0 | I49: kg/año
E50: ='Ring-pan y Huella CO2'!E108 -> Durmiente 65 Mpa | F50: ='Cálculo cemento'!F23 -> 0 | G50: ='Cálculo cemento'!G23 -> 0 | H50: 0 | I50: kg/año
F51: Total | G51: =+SUM(G46:G50) -> 50000 | H51: =+SUM(H46:H50) -> 16500 | I51: kg/año
F52: ='[1]Pagina a utilizar'!$E$28 -> 200000 | H52: =+(H51/G51)*F52 -> 66000

Sheet Cálculo huella CO2 (hidden)
E3: Costo cemento : | J3: 2.3 | K3: Pesos/kg
E4: 1 USD = | J4: 20 | K4: Pesos
E6: MEZCLADO CENTRAL : 4. SU SITUACION. | P6: Hoja 2 : cálculos.
E7: 4.0.5. Cálculo de sus ahorros de USD si utiliza un Mobile Twin-shaft 4.5 m3
E8: al lugar de Plandta dosificadora+Hormigonera ("Olla").
E9: ='Ring-pan y Huella CO2'!$B$8 -> EQUIPO FRANCES SA DE CV, Colima, 21 de Junio 2020, actualizado Jun. 22 2022.
E11: Leyenda color de poliza : | G11: Entrada dato | H11: Entrada dato | I11: Cálculo | J11: Texto | K11: Título
G12: esta hoja | H12: otra hoja
E13: CONSTANTES : | G13: Unidad | H13: Valor | I13: Precisión
E14: Cemento :
E15: Emisión de CO2 para fabricar | G15: kg/t | H15: 622 | I15: Cemex 791 kg/t (objectif 475 en 2030 soit 40% de moins), Holcim serait à 590 kg
E16: Emisión de CO2 para fabricar | G16: gramo/kg | H16: =+H15/1000 -> 0.622
E17: Electricidad :
E18: Emisión de CO2 para producir electricidad en México | G18: tCO2/MWh | H18: 494 | I18: Ver Estudio Ecologia 0.1. Coeficiente oficial Link
E19: Emisión de CO2 para producir electricidad en México | G19: kgCO2/kWh | H19: =+H18/1000 -> 0.494
E20: Emisión de CO2 para producir electricidad en México | G20: gCO2/kWh | H20: =+H19*1000 -> 494
E21: kiloWatt | G21: Watt (Joule/s) | H21: 1000
E22: kiloWatt-hora = kWh = | G22: Joule | H22: 3600000 | I22: Energia (o trabajo) de un aparato de 1000 Watt (1 Joule/segundo) durante una hora
G23: MJoule | H23: =+H22/1000000 -> 3.6
E24: VARIABLES : | G24: Unidad | H24: Valor
E25: Producción anual; ver Tabla Entrada datos | H25: ='Ring-pan y Huella CO2'!$G$45 -> 50000 | I25: m3
E26: Eficiencia jemorada en tiempo Twin-shaft Liebherr / Twin-shaft Otra mrca | H26: 0.15 | I26: %
E27: Eficiencia jemorada en tiempo Ring-pan Liebherr para cemento | H27: 0.15 | I27: %
E29: CONSUMO ELECTRICIDAD : | G29: Para concreto 30 MPa :
F30: Mezclado | G30: Mezclado | H30: Mezclado | I30: Mezclado | J30: Mezclado | K30: Mezclado | L30: Potencia | N30: Energia utilizada | Q30: Huella kg CO2 | S30: J/m3 | T30: Eficiencia | U30: Precio | V30: Consumo
F31: m3 | G31: tiempo min | H31: segundo | I31: s/m3 | J31: min/m3 | K31: hora/m3 | L31: kW | M31: J/s | N31: por m3 J/m3 | O31: kWh/m3 | P31: kWh total | Q31: por m3 | R31: total | S31: aplicado | T31: potencia/aplicado | U31: KWh | V31: KWh
E32: Revolvedora 8 m3 sobre chasis Diesel Tier 1 | F32: 8 | G32: 7 | H32: =+G32*60 -> 420 | I32: =+H32/F32 -> 52.5 | J32: =+I32/60 -> 0.875 | K32: =+J32/60 -> 0.01458333333 | V32: Pesos | W32: USD
E33: Revolvedora 8 m3sobre chasis Gas | F33: 8 | G33: 7 | H33: =+G33*60 -> 420 | I33: =+H33/F33 -> 52.5 | J33: =+I33/60 -> 0.875 | K33: 0.01458333333
E34: Revolvedora 8 m3 eléctrica sobre chasis diesel | F34: 8 | G34: 7 | H34: 420 | I34: 52.5 | J34: =+I34/60 -> 0.875 | K34: 0.01458333333 | L34: 28 | M34: =+L34*1000 -> 28000 | N34: =+M34*I34 -> 1470000 | O34: =+N34/$H$22 -> 0.4083333333 | P34: =+O34*$H$25 -> 20416.66667 | Q34: =+O34*$H$19 -> 0.2017166667 | R34: =+Q34*$H$25 -> 10085.83333 | S34: 541000 | T34: =+S34/N34 -> 0.3680272109 | U34: 0.786 | V34: =+U34*P34 -> 16047.5 | W34: =+V34/$J$4 -> 802.375
E35: Tilt 9 m3 | F35: 9 | G35: 5 | H35: 300 | I35: 33.33333333 | J35: =+I35/60 -> 0.5555555556 | K35: 0.009259259259 | L35: 150 | M35: =+L35*1000 -> 150000 | N35: =+M35*I35 -> 5000000 | O35: =+N35/$H$22 -> 1.388888889 | P35: =+O35*$H$25 -> 69444.44444 | Q35: =+O35*$H$19 -> 0.6861111111 | R35: =+Q35*$H$25 -> 34305.55556 | S35: 541000 | T35: =+S35/N35 -> 0.1082 | U35: 0.786 | V35: =+U35*P35 -> 54583.33333 | W35: =+V35/$J$4 -> 2729.166667
E36: Mezclador otro 3.5 | F36: 3.5 | G36: 1 | H36: 60 | I36: 17.14285714 | J36: =+I36/60 -> 0.2857142857 | K36: 0.004761904762 | L36: 110 | M36: 110000 | N36: 1885714.286 | O36: =+N36/$H$22 -> 0.5238095238 | P36: =+O36*$H$25 -> 26190.47619 | Q36: 0.2587619048 | R36: 12938.09524 | U36: 0.786 | V36: 20585.71429 | W36: 1029.285714
E37: Mezclador LIEBHERR 3.5 | F37: 3.5 | G37: =+G36*(1-H26) -> 0.85 | H37: 51 | I37: 14.57142857 | J37: =+I37/60 -> 0.2428571429 | K37: 0.004047619048 | L37: 110 | M37: 110000 | N37: 1602857.143 | O37: =+N37/$H$22 -> 0.4452380952 | P37: =+O37*$H$25 -> 22261.90476 | Q37: 0.219947619 | R37: 10997.38095 | U37: 0.786 | V37: 17497.85714 | W37: 874.8928571
E38: Mezclador Ring-pan 2.5 D | F38: 2.5 | G38: =+G37*(1-H28) -> 0.85 | H38: =+G38*60 -> 51 | I38: =+H38/F38 -> 20.4 | J38: =+I38/60 -> 0.34 | K38: =+J38/60 -> 0.005666666667 | L38: 110 | M38: =+L38*1000 -> 110000 | N38: =+M38*I38 -> 2244000 | O38: =+N38/$H$22 -> 0.6233333333 | P38: =+O38*$H$25 -> 31166.66667 | Q38: =+O38*$H$19 -> 0.3079266667 | R38: =+Q38*$H$25 -> 15396.33333 | U38: 0.786 | V38: 24497 | W38: 1224.85
R39: Resultados
E40: EMISION CEMENTO EN EXCESO | F40: Consumo | G40: Huella kg CO2 | R40: a hoja entrada
E41: AL MEZCLADOR : | F41: cemento t | G41: por t | H41: total
E42: Revolvedora 8 m3 sobre chasis Diesel Tier 1 | F42: ='Cálculo cemento'!$G$43 -> 2314.375 | G42: =+$H$15 -> 622 | H42: =+G42*F42 -> 1439541.25
E43: Revolvedora 8 m3sobre chasis Gas | F43: ='Cálculo cemento'!$G$43 -> 2314.375 | G43: =+$H$15 -> 622 | H43: =+(F43*$H$16)*1000 -> 1439541.25
E44: Revolvedora 8 m3 eléctrica sobre chasis diesel | F44: ='Cálculo cemento'!$G$43 -> 2314.375 | G44: 622 | H44: =+(F44*$H$16)*1000 -> 1439541.25
E45: Tilt 9 m3 (revolvedora - 3%) | F45: ='Cálculo cemento'!$L$43 -> A calculer | G45: 622 | H45: =+(F45*$H$16)*1000 -> 
E46: Mezclador otro 3.5
E47: Mezclador LIEBHERR 3.5
